Workbook

Sheet Dolny układ jezdny
C7: =Opisy!A15 -> Vyber profil
A9: 1.
C11: =Opisy!A18 -> Rozmery otvoru | F11: SD | G11: =HLOOKUP('Obliczenia-dolny'!$B$44,'Obliczenia-dolny'!$L$1:$AK$46,5,FALSE) -> 851 | H11: =Opisy!$A$50 -> mm | I11: =Opisy!A55 -> Šírka dverí
A12: 2. | C12: =Opisy!A22 -> WO [mm] | D12: 2500 | E12: =IF(D12>2740,Opisy!A19,IF(D12<1000,Opisy!A20,Opisy!A21)) -> <- OK | F12: WD | G12: =HLOOKUP('Obliczenia-dolny'!$B$44,'Obliczenia-dolny'!$L$1:$AK$46,6,FALSE) -> 2460 | H12: =Opisy!$A$50 -> mm | I12: =Opisy!A56 -> Výška dverí
A13: 3. | C13: =Opisy!A23 -> SO [mm] | D13: 2500 | E13: =IF(AND('Obliczenia-dolny'!C44='Obliczenia-dolny'!B11,'Dolny układ jezdny'!D13>3000),Opisy!A80,IF(D13>6000,Opisy!A24,IF(D13<1000,Opisy!A20,Opisy!A21))) -> <- OK | F13: SW18 | G13: =HLOOKUP('Obliczenia-dolny'!$B$44,'Obliczenia-dolny'!$L$1:$AK$46,7,FALSE) -> 844 | H13: =Opisy!$A$50 -> mm | I13: =Opisy!A57 -> Výplň 18mm
F14: SW16 | G14: =HLOOKUP('Obliczenia-dolny'!$B$44,'Obliczenia-dolny'!$L$1:$AK$46,8,FALSE) -> - | H14: =Opisy!$A$50 -> mm | I14: =Opisy!A58 -> Výplň 16mm
F15: SW12 | G15: =HLOOKUP('Obliczenia-dolny'!$B$44,'Obliczenia-dolny'!$L$1:$AK$46,9,FALSE) -> - | H15: =Opisy!$A$50 -> mm | I15: =Opisy!A59 -> Výplň 12mm
F16: SW10 | G16: =HLOOKUP('Obliczenia-dolny'!$B$44,'Obliczenia-dolny'!$L$1:$AK$46,10,FALSE) -> - | H16: =Opisy!$A$50 -> mm | I16: =Opisy!A60 -> Výplň 10mm
C17: =Opisy!A25 -> Konfigurácia krídiel | F17: SW4 | G17: =HLOOKUP('Obliczenia-dolny'!$B$44,'Obliczenia-dolny'!$L$1:$AK$46,11,FALSE) -> - | H17: =Opisy!$A$50 -> mm | I17: =Opisy!A61 -> Výplň 4mm
A18: 4. | C18: =Opisy!A26 -> n (I. krídiel ) | D18: 3 | E18: =IF(D18=0,Opisy!A52,IF($D$18>$D$19,IF($D$18>$D$19+2,Opisy!A52,Opisy!A21),Opisy!A52)) -> <- OK | F18: WW18 | G18: =HLOOKUP('Obliczenia-dolny'!$B$44,'Obliczenia-dolny'!$L$1:$AK$46,12,FALSE) -> 2457 | H18: =Opisy!$A$50 -> mm | I18: =Opisy!A62 -> Výplň 18mm
A19: 5. | C19: =Opisy!A27 -> k (I. prekrytie ) | D19: 2 | E19: =IF(D19=0,Opisy!A52,IF($D$18>$D$19,IF($D$18>$D$19+2,Opisy!A72,Opisy!A21),Opisy!A73)) -> <- OK | F19: WW16 | G19: =HLOOKUP('Obliczenia-dolny'!$B$44,'Obliczenia-dolny'!$L$1:$AK$46,13,FALSE) -> - | H19: =Opisy!$A$50 -> mm | I19: =Opisy!A63 -> Výplň 16mm
C20: =Opisy!A28 -> z (šírka prekrytia) | D20: =HLOOKUP('Obliczenia-dolny'!$B$44,'Obliczenia-dolny'!$L$1:$AK$46,21,FALSE) -> 28 | F20: WW12 | G20: =HLOOKUP('Obliczenia-dolny'!$B$44,'Obliczenia-dolny'!$L$1:$AK$46,14,FALSE) -> - | H20: =Opisy!$A$50 -> mm | I20: =Opisy!A64 -> Výplň 12mm
C21: =Opisy!A29 -> Štetina | F21: WW10 | G21: =HLOOKUP('Obliczenia-dolny'!$B$44,'Obliczenia-dolny'!$L$1:$AK$46,15,FALSE) -> - | H21: =Opisy!$A$50 -> mm | I21: =Opisy!A65 -> Výplň 10mm
C22: =IF(D18-D19>1,Opisy!A77," ") ->  | F22: WW4 | G22: =HLOOKUP('Obliczenia-dolny'!$B$44,'Obliczenia-dolny'!$L$1:$AK$46,16,FALSE) -> - | H22: =Opisy!$A$50 -> mm | I22: =Opisy!A66 -> Výplň 4mm
F23: DR | G23: =HLOOKUP('Obliczenia-dolny'!$B$44,'Obliczenia-dolny'!$L$1:$AK$46,17,FALSE) -> 2460 | H23: =Opisy!$A$50 -> mm | I23: =Opisy!A67 -> Dĺžka madla
F24: DLP | G24: =HLOOKUP('Obliczenia-dolny'!$B$44,'Obliczenia-dolny'!$L$1:$AK$46,18,FALSE) -> 798 | H24: =Opisy!$A$50 -> mm | I24: =Opisy!A68 -> Dĺžka spojovacieho prof.
F25: =IF(G25=Opisy!$E$1,Opisy!$E$2," ") ->  | G25: =IF(laczniki_tak,IF('Obliczenia-dolny'!$H$25=1,HLOOKUP(Wybrany_system,'Obliczenia-dolny'!$L$1:$AK$46,19,FALSE),IF(AND(System_z_grupy="B",Wybrany_lacznik=1),HLOOKUP('Obliczenia-dolny'!$B$44,'Obliczenia-dolny'!$L$1:$AK$46,19,FALSE),Opisy!$A$52)),HLOOKUP('Obliczenia-dolny'!$B$44,'Obliczenia-dolny'!$L$1:$AK$46,19,FALSE)) -> 24.89352528 | H25: =Opisy!$A$71 -> kg | I25: =IF('Obliczenia-dolny'!$C$44='Obliczenia-dolny'!$B$11,Opisy!A78,Opisy!A69) -> Váha krídla s výplňou DTD
F26: =IF(G26=Opisy!$E$1,Opisy!$E$2," ") ->  | G26: =IF(laczniki_tak,IF('Obliczenia-dolny'!$H$25=1,HLOOKUP(Wybrany_system,'Obliczenia-dolny'!$L$1:$AK$46,20,FALSE),IF(AND(System_z_grupy="B",Wybrany_lacznik=1),HLOOKUP('Obliczenia-dolny'!$B$44,'Obliczenia-dolny'!$L$1:$AK$46,20,FALSE),Opisy!$A$52)),HLOOKUP('Obliczenia-dolny'!$B$44,'Obliczenia-dolny'!$L$1:$AK$46,20,FALSE)) -> - | H26: =Opisy!$A$71 -> kg | I26: =IF('Obliczenia-dolny'!$C$44='Obliczenia-dolny'!$B$11,Opisy!A79,Opisy!A70) -> Váha krídla s výplňou sklo
C28: =Opisy!A30 -> Pozor:
C29: =Opisy!A31 -> Rozmery krídiel pre montáž mechanizmu soft closing: | F29: =IF('Obliczenia-dolny'!$L$6/'Obliczenia-dolny'!$L$5>3,Opisy!A33,Opisy!A34) -> Pomery sú v poriadku.
C30: =Opisy!A32 -> * - Hmotnosť krídla je vypočítana tak, aby splnila z DTD ( 620 kg / M3 ) alebo sklo ( 2800 kg / M3 ) bez škár
E32: 6. | F32: =Opisy!A35 -> "H" profily
D34: =IF(AND('Obliczenia-dolny'!C44='Obliczenia-dolny'!B11,'Obliczenia-dolny'!D6),Opisy!A155," ") -> 
C35: =Opisy!A36 -> Výpočet kombinovaných výplní.
A52: 7. | C52: =Opisy!A37 -> Vyber "H" profil | E52: =IF(OR(F25=Opisy!E2,F26=Opisy!E2),Opisy!E2," ") ->  | I52: =IF(AND('Obliczenia-dolny'!$D$6,'Obliczenia-dolny'!$G$25='Obliczenia-dolny'!$D$25),"↓18mm↓"," ") -> ↓18mm↓ | J52: =IF(AND('Obliczenia-dolny'!$D$6,'Obliczenia-dolny'!$G$25='Obliczenia-dolny'!D26),"↓16/12+4mm↓"," ") ->  | K52: =IF(AND('Obliczenia-dolny'!$D$6,'Obliczenia-dolny'!$G$25='Obliczenia-dolny'!D27),"↓18/4mm↓"," ") ->  | L52: =IF(AND('Obliczenia-dolny'!$D$6,'Obliczenia-dolny'!$G$25='Obliczenia-dolny'!D28),"↓10/4mm↓"," ") ->  | M52: =IF(AND('Obliczenia-dolny'!$D$6,'Obliczenia-dolny'!$G$25='Obliczenia-dolny'!D29),"↓FlatLine↓"," ") -> 
C54: =Opisy!A38 -> Rovnomerné rozloženie "H" profilov
C55: =Opisy!A39 -> Jedna hrúbka výplne
A56: 8. | C56: =Opisy!A40 -> i ( počet profilov "H" ) | F56: 2 | G56: =Opisy!$A$49 -> ks
C57: =Opisy!A41 -> Počet dielov | F57: =IF('Obliczenia-dolny'!D6=TRUE,F56+1,"-") -> 3 | G57: =Opisy!$A$49 -> ks
C58: =Opisy!A42 -> Diely z DTD
C59: =Opisy!A43 -> Výška DTD bez profilov "H" | F59: ='Obliczenia-dolny'!AM43 -> 2457 | G59: =Opisy!A50 -> mm
C60: =Opisy!A44 -> A (výška dielov z DTD) | F60: ='Obliczenia-dolny'!AM44 -> 818.3333333 | G60: =G59 -> mm
C61: =Opisy!A46 -> Diely zo skla 4mm
C62: =Opisy!A47 -> Výška skla bez profilov "H" | F62: ='Obliczenia-dolny'!AM45 -> - | G62: =Opisy!A50 -> mm
C63: =Opisy!A48 -> C (Výška skla 4mm ) | F63: ='Obliczenia-dolny'!AM46 -> - | G63: =IF(AND('Obliczenia-dolny'!G25="C",'Obliczenia-dolny'!D6),Opisy!A51,Opisy!A50) -> mm
C64: =IF(AND('Obliczenia-dolny'!G25="C",'Obliczenia-dolny'!D6),Opisy!A54," ") -> 
M67: GTV Poland Sp. z o.o. Sp. k.
M68: ul. Przejazdowa 21, 05-800 Pruszków, Polska
M69: www.gtv.com.pl
M70: gtv.tech@gtv.com.pl

Sheet Obliczenia-dolny (hidden)
A1: 1 | B1: ERGO 18mm | D1: Wybór rozwiązania ze szczotką | I1: =L6/L5 -> 2.890716804 | K1: 1 | L1: 1 | M1: 4 | N1: 5 | O1: 13 | P1: 2 | Q1: 3 | R1: 12 | S1: 18 | T1: 19 | U1: 23 | V1: 24 | W1: 6 | X1: 14 | Y1: 26 | Z1: 27 | AA1: 7 | AB1: 8 | AC1: 15 | AD1: 9 | AE1: 16 | AF1: 10 | AG1: 17 | AH1: 20 | AI1: 21 | AJ1: 22 | AK1: 11 | AL1: 1 | AM1: Aktualnie wybrany system
A2: 2 | B2: NOVO II 18mm | D2: TRUE | F2: =IF(D2,3,0) -> 3 | G2: Tak | J2: rączka | K2: 2 | L2: ERGO | M2: NOVO | P2: NOVO II | T2: NOVO 10 | U2: 71 ARCO | V2: 85 FALDA | W2: VISTA | Y2: LOCA | AA2: COTE | AD2: NERO | AF2: CARO | AH2: FORM | AI2: TRAFO | AJ2: FlatLine | AK2: Mito/Mito+ | AL2: 2
A3: 3 | B3: NOVO II 12+4mm | G3: Nie | J3: system | K3: 3 | L3: 18mm | M3: 18mm | N3: 16mm | O3: 18/4mm | P3: 18mm | Q3: 12+4mm | R3: - | S3: - | T3: 10/4mm | U3: 10/4mm | V3: =U3 -> 10/4mm | W3: 18mm | X3: 18/4mm | Y3: =W3 -> 18mm | Z3: =X3 -> 18/4mm | AA3: 18mm | AB3: 16mm | AC3: 18/4mm | AD3: 18mm | AE3: 18/4mm | AF3: 18mm | AG3: 18/4mm | AH3: 10/4mm | AI3: 10/4mm | AJ3: 10/4mm | AK3: 10/4mm | AL3: 3
A4: 4 | B4: NOVO S 18mm | J4: waga 1mb. [kg] | K4: 4 | L4: 0.219 | M4: 0.338 | N4: 0.338 | O4: 0.338 | P4: 0.332 | Q4: 0.332 | R4: - | S4: - | T4: 0.35 | U4: 0.418 | V4: 0.463 | W4: 0.38 | X4: 0.38 | Y4: 0.482 | Z4: 0.482 | AA4: 0.357 | AB4: 0.357 | AC4: 0.357 | AD4: 0.393 | AE4: 0.393 | AF4: 0.414 | AG4: 0.414 | AH4: 0.362 | AI4: 0.341 | AJ4: 0.405 | AK4: 0 | AL4: 4
A5: 5 | B5: NOVO S 16mm | D5: Łączniki | J5: SD | K5: 5 | L5: =IF($D$2,('Dolny układ jezdny'!$D$13-3+'Dolny układ jezdny'!$D$19*L21)/'Dolny układ jezdny'!$D$18,('Dolny układ jezdny'!$D$13+'Dolny układ jezdny'!$D$19*L21)/'Dolny układ jezdny'!$D$18) -> 851 | M5: =IF($D$2,('Dolny układ jezdny'!$D$13-3+'Dolny układ jezdny'!$D$19*M21)/'Dolny układ jezdny'!$D$18,('Dolny układ jezdny'!$D$13+'Dolny układ jezdny'!$D$19*M21)/'Dolny układ jezdny'!$D$18) -> 855 | N5: =IF($D$2,('Dolny układ jezdny'!$D$13-3+'Dolny układ jezdny'!$D$19*N21)/'Dolny układ jezdny'!$D$18,('Dolny układ jezdny'!$D$13+'Dolny układ jezdny'!$D$19*N21)/'Dolny układ jezdny'!$D$18) -> 855 | O5: =IF($D$2,('Dolny układ jezdny'!$D$13-3+'Dolny układ jezdny'!$D$19*O21)/'Dolny układ jezdny'!$D$18,('Dolny układ jezdny'!$D$13+'Dolny układ jezdny'!$D$19*O21)/'Dolny układ jezdny'!$D$18) -> 855 | P5: =IF($D$2,('Dolny układ jezdny'!$D$13-3+'Dolny układ jezdny'!$D$19*P21)/'Dolny układ jezdny'!$D$18,('Dolny układ jezdny'!$D$13+'Dolny układ jezdny'!$D$19*P21)/'Dolny układ jezdny'!$D$18) -> 855 | Q5: =IF($D$2,('Dolny układ jezdny'!$D$13-3+'Dolny układ jezdny'!$D$19*Q21)/'Dolny układ jezdny'!$D$18,('Dolny układ jezdny'!$D$13+'Dolny układ jezdny'!$D$19*Q21)/'Dolny układ jezdny'!$D$18) -> 855 | R5: - | S5: - | T5: =IF($D$2,('Dolny układ jezdny'!$D$13-3+'Dolny układ jezdny'!$D$19*T21)/'Dolny układ jezdny'!$D$18,('Dolny układ jezdny'!$D$13+'Dolny układ jezdny'!$D$19*T21)/'Dolny układ jezdny'!$D$18) -> 852.3333333 | U5: =IF($D$2,('Dolny układ jezdny'!$D$13-3+'Dolny układ jezdny'!$D$19*U21)/'Dolny układ jezdny'!$D$18,('Dolny układ jezdny'!$D$13+'Dolny układ jezdny'!$D$19*U21)/'Dolny układ jezdny'!$D$18) -> 853.6666667 | V5: =IF($D$2,('Dolny układ jezdny'!$D$13-3+'Dolny układ jezdny'!$D$19*V21)/'Dolny układ jezdny'!$D$18,('Dolny układ jezdny'!$D$13+'Dolny układ jezdny'!$D$19*V21)/'Dolny układ jezdny'!$D$18) -> 853.6666667 | W5: =IF($D$2,('Dolny układ jezdny'!$D$13-3+'Dolny układ jezdny'!$D$19*W21)/'Dolny układ jezdny'!$D$18,('Dolny układ jezdny'!$D$13+'Dolny układ jezdny'!$D$19*W21)/'Dolny układ jezdny'!$D$18) -> 852.3333333 | X5: =IF($D$2,('Dolny układ jezdny'!$D$13-3+'Dolny układ jezdny'!$D$19*X21)/'Dolny układ jezdny'!$D$18,('Dolny układ jezdny'!$D$13+'Dolny układ jezdny'!$D$19*X21)/'Dolny układ jezdny'!$D$18) -> 852.3333333 | Y5: =W5 -> 852.3333333 | Z5: =X5 -> 852.3333333 | AA5: =IF($D$2,('Dolny układ jezdny'!$D$13-3+'Dolny układ jezdny'!$D$19*AA21)/'Dolny układ jezdny'!$D$18,('Dolny układ jezdny'!$D$13+'Dolny układ jezdny'!$D$19*AA21)/'Dolny układ jezdny'!$D$18) -> 851.6666667 | AB5: =IF($D$2,('Dolny układ jezdny'!$D$13-3+'Dolny układ jezdny'!$D$19*AB21)/'Dolny układ jezdny'!$D$18,('Dolny układ jezdny'!$D$13+'Dolny układ jezdny'!$D$19*AB21)/'Dolny układ jezdny'!$D$18) -> 851.6666667 | AC5: =IF($D$2,('Dolny układ jezdny'!$D$13-3+'Dolny układ jezdny'!$D$19*AC21)/'Dolny układ jezdny'!$D$18,('Dolny układ jezdny'!$D$13+'Dolny układ jezdny'!$D$19*AC21)/'Dolny układ jezdny'!$D$18) -> 851.6666667 | AD5: =IF($D$2,('Dolny układ jezdny'!$D$13-3+'Dolny układ jezdny'!$D$19*AD21)/'Dolny układ jezdny'!$D$18,('Dolny układ jezdny'!$D$13+'Dolny układ jezdny'!$D$19*AD21)/'Dolny układ jezdny'!$D$18) -> 851.6666667 | AE5: =IF($D$2,('Dolny układ jezdny'!$D$13-3+'Dolny układ jezdny'!$D$19*AE21)/'Dolny układ jezdny'!$D$18,('Dolny układ jezdny'!$D$13+'Dolny układ jezdny'!$D$19*AE21)/'Dolny układ jezdny'!$D$18) -> 851.6666667 | AF5: =IF($D$2,('Dolny układ jezdny'!$D$13-3+'Dolny układ jezdny'!$D$19*AF21)/'Dolny układ jezdny'!$D$18,('Dolny układ jezdny'!$D$13+'Dolny układ jezdny'!$D$19*AF21)/'Dolny układ jezdny'!$D$18) -> 855 | AG5: =IF($D$2,('Dolny układ jezdny'!$D$13-3+'Dolny układ jezdny'!$D$19*AG21)/'Dolny układ jezdny'!$D$18,('Dolny układ jezdny'!$D$13+'Dolny układ jezdny'!$D$19*AG21)/'Dolny układ jezdny'!$D$18) -> 855 | AH5: =IF($D$2,('Dolny układ jezdny'!$D$13-3+'Dolny układ jezdny'!$D$19*AH21)/'Dolny układ jezdny'!$D$18,('Dolny układ jezdny'!$D$13+'Dolny układ jezdny'!$D$19*AH21)/'Dolny układ jezdny'!$D$18) -> 847.6666667 | AI5: =IF($D$2,('Dolny układ jezdny'!$D$13-3+'Dolny układ jezdny'!$D$19*AI21)/'Dolny układ jezdny'!$D$18,('Dolny układ jezdny'!$D$13+'Dolny układ jezdny'!$D$19*AI21)/'Dolny układ jezdny'!$D$18) -> 852.3333333 | AJ5: =IF($D$2,('Dolny układ jezdny'!$D$13-3+'Dolny układ jezdny'!$D$19*AJ21)/'Dolny układ jezdny'!$D$18,('Dolny układ jezdny'!$D$13+'Dolny układ jezdny'!$D$19*AJ21)/'Dolny układ jezdny'!$D$18) -> 851 | AK5: =IF($D$2,('Dolny układ jezdny'!$D$13-3+'Dolny układ jezdny'!$D$19*AK21)/'Dolny układ jezdny'!$D$18,('Dolny układ jezdny'!$D$13+'Dolny układ jezdny'!$D$19*AK21)/'Dolny układ jezdny'!$D$18) -> 852.3333333 | AL5: 5 | AM5: ='Dolny układ jezdny'!G11 -> 851
A6: 6 | B6: VISTA 18mm | D6: TRUE | F6: TAK/NIE | J6: WD | K6: 6 | L6: ='Dolny układ jezdny'!$D$12-40 -> 2460 | M6: ='Dolny układ jezdny'!$D$12-40 -> 2460 | N6: ='Dolny układ jezdny'!$D$12-40 -> 2460 | O6: ='Dolny układ jezdny'!$D$12-40 -> 2460 | P6: ='Dolny układ jezdny'!$D$12-40 -> 2460 | Q6: ='Dolny układ jezdny'!$D$12-40 -> 2460 | R6: - | S6: - | T6: ='Dolny układ jezdny'!$D$12-40 -> 2460 | U6: ='Dolny układ jezdny'!$D$12-40 -> 2460 | V6: ='Dolny układ jezdny'!$D$12-40 -> 2460 | W6: ='Dolny układ jezdny'!$D$12-40 -> 2460 | X6: ='Dolny układ jezdny'!$D$12-40 -> 2460 | Y6: 2460 | Z6: 2460 | AA6: ='Dolny układ jezdny'!$D$12-40 -> 2460 | AB6: ='Dolny układ jezdny'!$D$12-40 -> 2460 | AC6: ='Dolny układ jezdny'!$D$12-40 -> 2460 | AD6: ='Dolny układ jezdny'!$D$12-40 -> 2460 | AE6: ='Dolny układ jezdny'!$D$12-40 -> 2460 | AF6: ='Dolny układ jezdny'!$D$12-40 -> 2460 | AG6: ='Dolny układ jezdny'!$D$12-40 -> 2460 | AH6: ='Dolny układ jezdny'!$D$12-40 -> 2460 | AI6: ='Dolny układ jezdny'!$D$12-40 -> 2460 | AJ6: ='Dolny układ jezdny'!$D$12-40 -> 2460 | AK6: ='Dolny układ jezdny'!$D$12-12 -> 2488 | AL6: 6 | AM6: ='Dolny układ jezdny'!G12 -> 2460
A7: 7 | B7: COTE 18mm | D7: Wybór łącznika | J7: SW18 | K7: 7 | L7: =L5-7 -> 844 | M7: =M5-36 -> 819 | N7: - | O7: =O5-36 -> 819 | P7: =P5-30 -> 825 | Q7: - | R7: - | S7: - | T7: - | U7: - | V7: - | W7: =W5-31 -> 821.3333333 | X7: =X5-31 -> 821.3333333 | Y7: 821.3333333 | Z7: 821.3333333 | AA7: =AA5-36 -> 815.6666667 | AB7: - | AC7: =AC5-36 -> 815.6666667 | AD7: =AD5-31 -> 820.6666667 | AE7: =AE5-31 -> 820.6666667 | AF7: =AF5-31 -> 824 | AG7: =AG5-31 -> 824 | AH7: - | AI7: - | AJ7: - | AK7: =AK5 -> 852.3333333 | AL7: 7 | AM7: ='Dolny układ jezdny'!G13 -> 844
A8: 8 | B8: COTE 16mm | E8: 1 | F8: A-T18-300-XX | G8: 1 | H8: A | J8: SW16 | K8: 8 | L8: - | M8: - | N8: =N5-21 -> 834 | O8: - | P8: - | Q8: - | R8: - | S8: - | T8: - | U8: - | V8: - | W8: - | X8: - | Y8: - | Z8: - | AA8: - | AB8: =AB5-21 -> 830.6666667 | AC8: - | AD8: =W8 -> - | AE8: =X8 -> - | AF8: - | AG8: - | AH8: - | AI8: - | AJ8: - | AK8: =AK5 -> 852.3333333 | AL8: 8 | AM8: ='Dolny układ jezdny'!G14 -> -
A9: 9 | B9: NERO 18mm | F9: A-H18-300-XX | G9: 2 | H9: A | J9: SW12 | K9: 9 | L9: - | M9: - | N9: - | O9: - | P9: - | Q9: =Q5-7 -> 848 | R9: - | S9: - | T9: - | U9: - | V9: - | W9: - | X9: - | Y9: - | Z9: - | AA9: - | AB9: - | AC9: - | AD9: - | AE9: - | AF9: - | AG9: - | AH9: - | AI9: - | AJ9: - | AK9: - | AL9: 9 | AM9: ='Dolny układ jezdny'!G15 -> -
A10: 10 | B10: CARO 18mm | F10: A-H16-300-XX | G10: 3 | H10: B | J10: SW10 | K10: 10 | L10: - | M10: - | N10: - | O10: - | P10: - | Q10: - | R10: - | S10: - | T10: =T5-21 -> 831.3333333 | U10: =U5-43 -> 810.6666667 | V10: =V5-43 -> 810.6666667 | W10: - | X10: - | Y10: - | Z10: - | AA10: - | AB10: - | AC10: - | AD10: - | AE10: - | AF10: - | AG10: - | AH10: =AH5-27 -> 820.6666667 | AI10: =AI5-21 -> 831.3333333 | AJ10: =AJ5-36 -> 815 | AK10: - | AL10: 10 | AM10: ='Dolny układ jezdny'!G16 -> -
A11: 11 | B11: MITO/MITO PLUS | D11: - | F11: A-HRS18-YYY-XX | G11: 4 | H11: C | J11: SW4 | K11: 11 | L11: - | M11: - | N11: - | O11: =O5-24 -> 831 | P11: - | Q11: =Q5-32 -> 823 | R11: - | S11: - | T11: =T5-24 -> 828.3333333 | U11: =U10-3 -> 807.6666667 | V11: =V10-3 -> 807.6666667 | W11: - | X11: =X5-23 -> 829.3333333 | Y11: - | Z11: 829.3333333 | AA11: - | AB11: - | AC11: =AC5-23 -> 828.6666667 | AD11: - | AE11: =AE5-23 -> 828.6666667 | AF11: - | AG11: =AG5-23 -> 832 | AH11: =AH5-30 -> 817.6666667 | AI11: =AI5-24 -> 828.3333333 | AJ11: =AJ5-39 -> 812 | AK11: - | AL11: 11 | AM11: ='Dolny układ jezdny'!G17 -> -
A12: 12 | B12: =Opisy!A75 -> ------RÁMOWE 18mm-------------- | D12: - | F12: A-HR18-300-XX | G12: 5 | H12: C | J12: WW18 | K12: 12 | L12: =L6-3 -> 2457 | M12: =M6-3 -> 2457 | N12: - | O12: =O6-69 -> 2391 | P12: =P6-3 -> 2457 | Q12: - | R12: - | S12: - | T12: - | U12: - | V12: - | W12: =M12 -> 2457 | X12: =O12 -> 2391 | Y12: 2457 | Z12: 2391 | AA12: =W12 -> 2457 | AB12: - | AC12: =X12 -> 2391 | AD12: 2457 | AE12: 2391 | AF12: =W12 -> 2457 | AG12: =X12 -> 2391 | AH12: - | AI12: - | AJ12: - | AK12: =AK6 -> 2488 | AL12: 12 | AM12: ='Dolny układ jezdny'!G18 -> 2457
A13: 13 | B13: NOVO S 18/4mm | D13: - | F13: A-HRS10-YYY-XX | G13: 6 | H13: D | J13: WW16 | K13: 13 | L13: - | M13: - | N13: =N6-3 -> 2457 | O13: - | P13: - | Q13: - | R13: - | S13: - | T13: - | U13: - | V13: - | W13: - | X13: - | Y13: - | Z13: - | AA13: - | AB13: =N13 -> 2457 | AC13: - | AD13: - | AE13: - | AF13: - | AG13: - | AH13: - | AI13: - | AJ13: - | AK13: =AK6 -> 2488 | AL13: 13 | AM13: ='Dolny układ jezdny'!G19 -> -
A14: 14 | B14: VISTA 18/4mm | F14: A-HR10-YYY-XX | G14: 7 | H14: D | J14: WW12 | K14: 14 | L14: - | M14: - | N14: - | O14: - | P14: - | Q14: =Q6-3 -> 2457 | R14: - | S14: - | T14: - | U14: - | V14: - | W14: - | X14: - | Y14: - | Z14: - | AA14: - | AB14: - | AC14: - | AD14: - | AE14: - | AF14: - | AG14: - | AH14: - | AI14: - | AJ14: - | AK14: - | AL14: 14 | AM14: ='Dolny układ jezdny'!G20 -> -
A15: 15 | B15: COTE 18/4mm | F15: A-HR10FL-YYY-XX | G15: 8 | H15: E | J15: WW10 | K15: 15 | L15: - | M15: - | N15: - | O15: - | P15: - | Q15: - | R15: - | S15: - | T15: =T6-60 -> 2400 | U15: =T15 -> 2400 | V15: =U15 -> 2400 | W15: - | X15: - | Y15: - | Z15: - | AA15: - | AB15: - | AC15: - | AD15: - | AE15: - | AF15: - | AG15: - | AH15: =AH6-60 -> 2400 | AI15: =AI6-60 -> 2400 | AJ15: =AJ6-5 -> 2455 | AK15: - | AL15: 15 | AM15: ='Dolny układ jezdny'!G21 -> -
A16: 16 | B16: NERO 18/4mm | J16: WW4 | K16: 16 | L16: - | M16: - | N16: - | O16: =O6-61 -> 2399 | P16: - | Q16: =Q6-5 -> 2455 | R16: - | S16: - | T16: =T6-61 -> 2399 | U16: =T16 -> 2399 | V16: =U16 -> 2399 | W16: - | X16: =O16 -> 2399 | Y16: - | Z16: 2399 | AA16: - | AB16: - | AC16: =X16 -> 2399 | AD16: - | AE16: 2399 | AF16: - | AG16: 2399 | AH16: =AH6-61 -> 2399 | AI16: =AI6-61 -> 2399 | AJ16: =AJ6-6 -> 2454 | AK16: - | AL16: 16 | AM16: ='Dolny układ jezdny'!G22 -> -
A17: 17 | B17: CARO 18/4mm | J17: DR | K17: 17 | L17: =L6 -> 2460 | M17: 2460 | N17: 2460 | O17: 2460 | P17: 2460 | Q17: 2460 | R17: - | S17: - | T17: 2460 | U17: 2460 | V17: 2460 | W17: 2460 | X17: 2460 | Y17: 2460 | Z17: 2460 | AA17: 2460 | AB17: 2460 | AC17: 2460 | AD17: 2460 | AE17: 2460 | AF17: 2460 | AG17: 2460 | AH17: =AH6 -> 2460 | AI17: 2460 | AJ17: 2460 | AK17: - | AL17: 17 | AM17: ='Dolny układ jezdny'!G23 -> 2460
A18: 18 | B18: =Opisy!A76 -> ------RÁMOWE 10mm-------------- | J18: DLP | K18: 18 | L18: =L5-53 -> 798 | M18: =M5-52 -> 803 | N18: =N5-52 -> 803 | O18: =O5-52 -> 803 | P18: =P5-52 -> 803 | Q18: =Q5-52 -> 803 | R18: - | S18: - | T18: =T5-38 -> 814.3333333 | U18: =U10-17 -> 793.6666667 | V18: =V10-17 -> 793.6666667 | W18: =W5-55 -> 797.3333333 | X18: =X5-55 -> 797.3333333 | Y18: 797.3333333 | Z18: 797.3333333 | AA18: =AA5-52 -> 799.6666667 | AB18: =AB5-52 -> 799.6666667 | AC18: 799.6666667 | AD18: =AD5-55 -> 796.6666667 | AE18: 796.6666667 | AF18: 800 | AG18: =AG5-55 -> 800 | AH18: =AH5-44 -> 803.6666667 | AI18: =AI5-38 -> 814.3333333 | AJ18: =AJ5-53 -> 798 | AK18: - | AL18: 18 | AM18: ='Dolny układ jezdny'!G24 -> 798
A19: 19 | B19: NOVO 10/4mm | J19: Skrzydło na płycie [kg] | K19: 19 | L19: =L22+SUM(L29:L41) -> 24.89352528 | M19: =M22+SUM(M29:M41) -> 24.79584228 | N19: =N22+SUM(N29:N41) -> 22.66621296 | O19: =O22+SUM(O29:O41) -> 24.46080164 | P19: =P22+SUM(P29:P41) -> 24.930843 | Q19: - | R19: - | S19: - | T19: =T22+SUM(T29:T41) -> 14.97041667 | U19: 14.98278333 | V19: 15.20418333 | W19: =W22+SUM(W29:W41) -> 25.06381056 | X19: 24.72515861 | Y19: 25.06381056 | Z19: 24.72515861 | AA19: 24.79636188 | AB19: 25.20766368 | AC19: 23.82133044 | AD19: =AD22+SUM(AD29:AD41) -> 25.10917848 | AE19: =AE22+SUM(AE29:AE41) -> 24.77079491 | AF19: 25.30545888 | AG19: 24.96573344 | AH19: =AH22+SUM(AH29:AH41) -> 14.86316333 | AI19: 14.92613667 | AJ19: 15.290629 | AK19: =AK22+SUM(AK29:AK41) -> 24.06595552 | AL19: 19 | AM19: ='Dolny układ jezdny'!G25 -> 24.89352528
A20: 20 | B20: FORM 10/4mm | J20: Skrzydło na szkle [kg] | K20: 20 | L20: - | M20: - | N20: - | O20: =O23+SUM(O29:O41) -> 24.9349388 | P20: - | Q20: =Q22+Q23+SUM(Q29:Q41) -> 40.43995984 | R20: - | S20: - | T20: =T23+SUM(T29:T41) -> 24.85649933 | U20: =U23+SUM(U29:U41) -> 24.62109747 | V20: =V23+SUM(V29:V41) -> 24.84249747 | W20: - | X20: =X23+SUM(X29:X41) -> 25.0922528 | Y20: - | Z20: 25.0922528 | AA20: - | AB20: - | AC20: =AC23+SUM(AC29:AC41) -> 24.32171893 | AD20: - | AE20: =AE23+SUM(AE29:AE41) -> 25.1377656 | AF20: - | AG20: =AG23+SUM(AG29:AG41) -> 25.3333216 | AH20: =AH23+SUM(AH29:AH41) -> 24.62136547 | AI20: =AI23+SUM(AI29:AI41) -> 24.81221933 | AJ20: =AJ23+SUM(AJ29:AJ41) -> 25.2031716 | AK20: =AK23+SUM(AK29:AK41) -> 21.43640491 | AL20: 20 | AM20: ='Dolny układ jezdny'!G26 -> -
A21: 21 | B21: TRAFO 10/4mm | J21: Szerokość zakładki | K21: 21 | L21: 28 | M21: 34 | N21: 34 | O21: 34 | P21: 34 | Q21: 34 | R21: - | S21: - | T21: 30 | U21: 32 | V21: 32 | W21: 30 | X21: 30 | Y21: 30 | Z21: 30 | AA21: 29 | AB21: 29 | AC21: 29 | AD21: 29 | AE21: 29 | AF21: 34 | AG21: 34 | AH21: 23 | AI21: 30 | AJ21: 28 | AK21: 30 | AL21: 21 | AM21: =HLOOKUP($B$44,$L$1:$AK$46,AL21,FALSE) -> 28
A22: 22 | B22: FLAT LINE 10/4mm | J22: Waga wypełnienia z płyty | K22: 22 | L22: =L7*L12*18*$L$25/1000000000 -> 23.14258128 | M22: =M7*M12*18*$L$25/1000000000 -> 22.45707828 | N22: =N8*N13*16*$L$25/1000000000 -> 20.32744896 | O22: =O7*O12*18*$L$25/1000000000 -> 21.85383564 | P22: =P7*P12*18*$L$25/1000000000 -> 22.621599 | Q22: =Q9*Q14*12*$L$25/1000000000 -> 15.50150784 | R22: - | S22: - | T22: =T10*T15*10*$L$25/1000000000 -> 12.37024 | U22: =U10*U15*10*$L$25/1000000000 -> 12.06272 | V22: =V10*V15*10*$L$25/1000000000 -> 12.06272 | W22: =W7*W12*18*$L$25/1000000000 -> 22.52105856 | X22: =X7*X12*18*$L$25/1000000000 -> 21.91609728 | Y22: 22.52105856 | Z22: 21.91609728 | AA22: =AA7*AA12*18*$L$25/1000000000 -> 22.36567788 | AB22: =AB8*AB13*18*$L$25/1000000000 -> 22.77697968 | AC22: =AC7*AC12*18*$L$25/1000000000 -> 21.76489044 | AD22: =AD7*AD12*18*$L$25/1000000000 -> 22.50277848 | AE22: =AE7*AE12*18*$L$25/1000000000 -> 21.89830824 | AF22: =AF7*AF12*18*$L$25/1000000000 -> 22.59417888 | AG22: =AG7*AG12*18*$L$25/1000000000 -> 21.98725344 | AH22: =AH10*AH15*10*$L$25/1000000000 -> 12.21152 | AI22: =AI10*AI15*10*$L$25/1000000000 -> 12.37024 | AJ22: =AJ10*AJ15*10*$L$25/1000000000 -> 12.405115 | AK22: =AK7*AK12*18*$L$25/1000000000 -> 23.66595552 | AL22: 22 | AM22: =HLOOKUP($B$44,$L$1:$AK$46,AL22,FALSE) -> 23.14258128
A23: 23 | B23: ARCO 10/4mm | D23: Warunek poprawnego wyboru łącznika | J23: Waga wypełnienia ze szkła | K23: 23 | L23: - | M23: - | N23: - | O23: =O11*O16*4*$L$27/1000000000 -> 22.3279728 | P23: - | Q23: =Q11*Q16*4*$L$27/1000000000 -> 22.629208 | R23: - | S23: - | T23: =T11*T16*4*$L$27/1000000000 -> 22.25632267 | U23: =U11*U16*4*$L$27/1000000000 -> 21.70103413 | V23: =V11*V16*4*$L$27/1000000000 -> 21.70103413 | W23: - | X23: =X11*X16*4*$L$27/1000000000 -> 22.28319147 | Y23: - | Z23: 22.28319147 | AA23: - | AB23: - | AC23: =AC11*AC16*4*$L$27/1000000000 -> 22.26527893 | AD23: - | AE23: =AE11*AE16*4*$L$27/1000000000 -> 22.26527893 | AF23: - | AG23: =AG11*AG16*4*$L$27/1000000000 -> 22.3548416 | AH23: =AH11*AH16*4*$L$27/1000000000 -> 21.96972213 | AI23: =AI11*AI16*4*$L$27/1000000000 -> 22.25632267 | AJ23: =AJ11*AJ16*4*$L$27/1000000000 -> 22.3176576 | AK23: =AK8*AK13*16*$L$25/1000000000 -> 21.03640491 | AL23: 23 | AM23: =HLOOKUP($B$44,$L$1:$AK$46,AL23,FALSE) -> -
A24: 24 | B24: FALDA 10/4mm | D24: Grupy łączników | F24: Łącznik z grupy: | G24: System z grupy: | H24: Test | K24: 24 | L24: Płyta wiórowa - wga 1m3 [kg] | AL24: 24
A25: 25 | B25: =Opisy!A158 -> Novinky | D25: A | E25: 18mm | F25: =VLOOKUP(E8,G8:H15,2,FALSE) -> A | G25: =HLOOKUP(B44,$L$1:$AK$42,42,FALSE) -> A | H25: =IF(F25=G25,1,IF(AND(Lacznik_z_grupy=D29,System_z_grupy=T42),1,0)) -> 1 | K25: 25 | L25: 620 | AL25: 25
A26: 26 | B26: LOCA 18mm | D26: B | E26: 16 (12+4)mm | K26: 26 | L26: Szkło 4mm - waga 1m3 [kg] | AL26: 26
A27: 27 | B27: LOCA 18/4mm | D27: C | E27: 18/4mm | K27: 27 | L27: 2800 | AL27: 27
A28: 28 | D28: D | E28: 10/4mm | F28: LICZBA ŁĄCZNIKÓW | G28: ='Dolny układ jezdny'!F56 -> 2 | K28: 28 | L28: Okucia - waga 1 kpl. | AL28: 28
A29: 29 | D29: E | E29: FlatLine | K29: 29 | L29: 0.3 | M29: 0.3 | N29: 0.3 | O29: 0.3 | P29: 0.3 | Q29: 0.3 | R29: - | S29: - | T29: 0.3 | U29: 0.3 | V29: 0.3 | W29: 0.3 | X29: 0.3 | Y29: 0.3 | Z29: 0.3 | AA29: 0.3 | AB29: 0.3 | AC29: 0.3 | AD29: 0.3 | AE29: 0.3 | AF29: 0.3 | AG29: 0.3 | AH29: 0.3 | AI29: 0.3 | AJ29: 0.3 | AK29: 0.4 | AL29: 29 | AM29: =HLOOKUP($B$44,$L$1:$AK$46,AL29,FALSE) -> 0.3
A30: 30 | K30: 30 | L30: Aluminium | AL30: 30
A31: 31 | I31: LG18 | J31: 0.257 | K31: 31 | L31: - | M31: - | N31: - | O31: =J31*$O$18/1000 -> 0.206371 | P31: - | Q31: - | R31: - | S31: - | T31: - | U31: - | V31: - | W31: - | X31: =X18*$J$31/1000 -> 0.2049146667 | Y31: - | Z31: =Z18*$J$31/1000 -> 0.2049146667 | AA31: - | AB31: - | AC31: - | AD31: - | AE31: =AE18*$J$31/1000 -> 0.2047433333 | AF31: - | AG31: =AG18*$J$31/1000 -> 0.2056 | AH31: - | AI31: - | AJ31: - | AK31: - | AL31: 31 | AM31: =HLOOKUP($B$44,$L$1:$AK$46,AL31,FALSE) -> -
A32: 32 | I32: LD18 | J32: 0.545 | K32: 32 | L32: - | M32: - | N32: - | O32: =J32*$O$18/1000 -> 0.437635 | P32: - | Q32: - | R32: - | S32: - | T32: - | U32: - | V32: - | W32: - | X32: =X18*$J$32/1000 -> 0.4345466667 | Y32: - | Z32: =Z18*$J$32/1000 -> 0.4345466667 | AA32: - | AB32: - | AC32: - | AD32: - | AE32: =AE18*$J$32/1000 -> 0.4341833333 | AF32: - | AG32: =AG18*$J$32/1000 -> 0.436 | AH32: - | AI32: - | AJ32: - | AK32: - | AL32: 32 | AM32: =HLOOKUP($B$44,$L$1:$AK$46,AL32,FALSE) -> -
A33: 33 | I33: LG10 | J33: 0.236 | K33: 33 | L33: - | M33: - | N33: - | O33: - | P33: - | Q33: - | R33: - | S33: - | T33: =T18*$J$33/1000 -> 0.1921826667 | U33: =U18*$J$33/1000 -> 0.1873053333 | V33: =V18*$J$33/1000 -> 0.1873053333 | W33: - | X33: - | Y33: - | Z33: - | AA33: - | AB33: - | AC33: - | AD33: - | AE33: - | AF33: - | AG33: - | AH33: =AH18*$J$33/1000 -> 0.1896653333 | AI33: =AI18*$J$33/1000 -> 0.1921826667 | AJ33: =AJ18*0.249/1000 -> 0.198702 | AK33: - | AL33: 33 | AM33: -
A34: 34 | I34: LD10 | J34: 0.474 | K34: 34 | L34: - | M34: - | N34: - | O34: - | P34: - | Q34: - | R34: - | S34: - | T34: =T18*$J$34/1000 -> 0.385994 | U34: =U18*$J$34/1000 -> 0.376198 | V34: =V18*$J$34/1000 -> 0.376198 | W34: - | X34: - | Y34: - | Z34: - | AA34: - | AB34: - | AC34: - | AD34: - | AE34: - | AF34: - | AG34: - | AH34: =AH18*$J$34/1000 -> 0.380938 | AI34: =AI18*$J$34/1000 -> 0.385994 | AJ34: =AJ18*0.494/1000 -> 0.394212 | AK34: - | AL34: 34 | AM34: -
A35: 35 | I35: HRS10 | J35: 0.268 | K35: 35 | L35: - | M35: - | N35: - | O35: - | P35: - | Q35: - | R35: - | S35: - | T35: =IF(AND($D$6,$E$8=6),$J$35*$G$28*T18/1000,0) -> 0 | U35: =IF(AND($D$6,$E$8=6),$J$35*$G$28*U18/1000,0) -> 0 | V35: =IF(AND($D$6,$E$8=6),$J$35*$G$28*V18/1000,0) -> 0 | W35: - | X35: - | Y35: - | Z35: - | AA35: - | AB35: - | AC35: - | AD35: - | AE35: - | AF35: - | AG35: - | AH35: =IF(AND($D$6,$E$8=6),$J$35*$G$28*AH18/1000,0) -> 0 | AI35: =IF(AND($D$6,$E$8=6),$J$35*$G$28*AI18/1000,0) -> 0 | AJ35: - | AK35: - | AL35: 35 | AM35: -
A36: 36 | I36: HR10 lub HR10FL | J36: 0.185 | K36: 36 | L36: - | M36: - | N36: - | O36: - | P36: - | Q36: - | R36: - | S36: - | T36: =IF(AND($D$6,$E$8=7),$J$36*$G$28*T18/1000,IF(AND(laczniki_tak,Wybrany_lacznik=$G$15),0.75*$J$36*T18*l._lacznikow/1000,0)) -> 0 | U36: =IF(AND($D$6,$E$8=7),$J$36*$G$28*U18/1000,IF(AND(laczniki_tak,Wybrany_lacznik=$G$15),0.75*$J$36*U18*l._lacznikow/1000,0)) -> 0 | V36: =IF(AND($D$6,$E$8=7),$J$36*$G$28*V18/1000,IF(AND(laczniki_tak,Wybrany_lacznik=$G$15),0.75*$J$36*V18*l._lacznikow/1000,0)) -> 0 | W36: - | X36: - | Y36: - | Z36: - | AA36: - | AB36: - | AC36: - | AD36: - | AE36: - | AF36: - | AG36: - | AH36: =IF(AND($D$6,$E$8=7),$J$36*$G$28*AH18/1000,IF(AND(laczniki_tak,Wybrany_lacznik=$G$15),0.75*$J$36*AH18*l._lacznikow/1000,0)) -> 0 | AI36: =IF(AND($D$6,$E$8=7),$J$36*$G$28*AI18/1000,IF(AND(laczniki_tak,Wybrany_lacznik=$G$15),0.75*$J$36*AI18*l._lacznikow/1000,0)) -> 0 | AJ36: =IF(AND($D$6,$E$8=8),0.75*$J$36*$G$28*AJ18/1000,0) -> 0 | AK36: - | AL36: 36 | AM36: -
I37: C | J37: 0.122 | K37: 37 | L37: =2*$J$37*L18/1000 -> 0.194712 | M37: =2*$J$37*M18/1000 -> 0.195932 | N37: =2*$J$37*N18/1000 -> 0.195932 | O37: - | P37: =2*$J$37*P18/1000 -> 0.195932 | Q37: =2*$J$37*Q18/1000 -> 0.195932 | R37: - | S37: - | T37: - | U37: - | V37: - | W37: =2*$J$37*W18/1000 -> 0.1945493333 | X37: - | Y37: =2*$J$37*Y18/1000 -> 0.1945493333 | Z37: - | AA37: =2*$J$37*AA18/1000 -> 0.1951186667 | AB37: =2*$J$37*AB18/1000 -> 0.1951186667 | AC37: - | AD37: =2*$J$37*AD18/1000 -> 0.1943866667 | AE37: - | AF37: =2*$J$37*AF18/1000 -> 0.1952 | AG37: - | AH37: - | AI37: - | AJ37: - | AK37: - | AL37: 37 | AM37: 0.194712
I38: łącznik HRS18 | J38: 0.348 | K38: 38 | L38: - | M38: - | N38: - | O38: =IF(AND($D$6,$E$8=4),$J$38*$G$28*O18/1000,0) -> 0 | P38: - | Q38: - | R38: - | S38: - | T38: - | U38: - | V38: - | W38: - | X38: =IF(AND($D$6,$E$8=4),$J$38*$G$28*X18/1000,0) -> 0 | Y38: - | Z38: =IF(AND($D$6,$E$8=4),$J$38*$G$28*Z18/1000,0) -> 0 | AA38: - | AB38: - | AC38: =IF(AND($D$6,$E$8=4),$J$38*$G$28*AC18/1000,0) -> 0 | AD38: - | AE38: =IF(AND($D$6,$E$8=4),$J$38*$G$28*AE18/1000,0) -> 0 | AF38: - | AG38: =IF(AND($D$6,$E$8=4),$J$38*$G$28*AG18/1000,0) -> 0 | AH38: - | AI38: - | AJ38: - | AK38: - | AL38: 38 | AM38: -
I39: łącznik HR18 | J39: 0.209 | K39: 39 | L39: - | M39: - | N39: - | O39: =IF(AND($D$6,$E$8=5),$J$39*$G$28*O18/1000,0) -> 0 | P39: - | Q39: - | R39: - | S39: - | T39: - | U39: - | V39: - | W39: - | X39: =IF(AND($D$6,$E$8=5),$J$39*$G$28*X18/1000,0) -> 0 | Y39: - | Z39: =IF(AND($D$6,$E$8=5),$J$39*$G$28*Z18/1000,0) -> 0 | AA39: - | AB39: - | AC39: =IF(AND($D$6,$E$8=5),$J$39*$G$28*AC18/1000,0) -> 0 | AD39: - | AE39: =IF(AND($D$6,$E$8=5),$J$39*$G$28*AE18/1000,0) -> 0 | AF39: - | AG39: =IF(AND($D$6,$E$8=5),$J$39*$G$28*AG18/1000,0) -> 0 | AH39: - | AI39: - | AJ39: - | AK39: - | AL39: 39 | AM39: -
I40: łącznik H18 | J40: 0.112 | K40: 40 | L40: =IF(AND($D$6,$E$8<3),$J$40*$G$28*L18/1000,0) -> 0.178752 | M40: =IF(AND($D$6,$E$8<3),$J$40*$G$28*M18/1000,0) -> 0.179872 | N40: =IF(AND($D$6,OR($E$8=3,$E$8=1)),$J$40*$G$28*N18/1000,0) -> 0.179872 | P40: =IF(AND($D$6,$E$8<3),$J$40*$G$28*P18/1000,0) -> 0.179872 | Q40: =IF(AND($D$6,OR($E$8=3,$E$8=1)),$J$40*$G$28*Q18/1000,0) -> 0.179872 | R40: - | S40: - | W40: =IF(AND($D$6,$E$8<3),$J$40*$G$28*W18/1000,0) -> 0.1786026667 | Y40: =IF(AND($D$6,$E$8<3),$J$40*$G$28*Y18/1000,0) -> 0.1786026667 | AA40: =IF(AND($D$6,$E$8<3),$J$40*$G$28*AA18/1000,0) -> 0.1791253333 | AB40: =IF(AND($D$6,OR($E$8=3,$E$8=1)),$J$40*$G$28*AB18/1000,0) -> 0.1791253333 | AD40: =IF(AND($D$6,$E$8<3),$J$40*$G$28*AD18/1000,0) -> 0.1784533333 | AF40: =IF(AND($D$6,$E$8<3),$J$40*$G$28*AF18/1000,0) -> 0.1792 | AJ40: - | AK40: - | AL40: 40 | AM40: 0.178752
I41: Rączka | K41: 41 | L41: =2*L4*L17/1000 -> 1.07748 | M41: =2*M4*M17/1000 -> 1.66296 | N41: 1.66296 | O41: 1.66296 | P41: 1.63344 | Q41: 1.63344 | R41: - | S41: - | T41: 1.722 | U41: 2.05656 | V41: 2.27796 | W41: 1.8696 | X41: 1.8696 | Y41: =2*Y4*Y17/1000 -> 2.37144 | Z41: 2.37144 | AA41: 1.75644 | AB41: 1.75644 | AC41: 1.75644 | AD41: =2*AD4*AD17/1000 -> 1.93356 | AE41: 1.93356 | AF41: 2.03688 | AG41: 2.03688 | AH41: 1.78104 | AI41: 1.67772 | AJ41: 1.9926 | AK41: - | AL41: 41 | AM41: 1.07748
I42: System należy do grupy łączników | K42: 42 | L42: A | M42: A | N42: B | O42: C | P42: A | Q42: B | R42: - | S42: - | T42: D | U42: D | V42: D | W42: A | X42: C | Y42: A | Z42: C | AA42: A | AB42: B | AC42: C | AD42: A | AE42: C | AF42: A | AG42: C | AH42: D | AI42: D | AJ42: E | AK42: F | AL42: 42 | AM42: A
I43: Wys. wyp. z płyty bez łączników | K43: 43 | L43: =L12 -> 2457 | M43: =M12 -> 2457 | N43: =N13 -> 2457 | O43: =O12 -> 2391 | P43: =P12 -> 2457 | Q43: =Q14 -> 2457 | R43: - | S43: - | T43: =T15 -> 2400 | U43: =U15 -> 2400 | V43: =V15 -> 2400 | W43: =W12 -> 2457 | X43: =X12 -> 2391 | Y43: =Y12 -> 2457 | Z43: =Z12 -> 2391 | AA43: =AA12 -> 2457 | AB43: =AB13 -> 2457 | AC43: =AC12 -> 2391 | AD43: =AD12 -> 2457 | AE43: 2391 | AF43: 2457 | AG43: 2391 | AH43: =AH15 -> 2400 | AI43: =AI15 -> 2400 | AJ43: =AJ15 -> 2455 | AK43: - | AL43: 43 | AM43: 2457
A44: Wyb. Syst. | B44: 1 | C44: =VLOOKUP(B44,A1:B27,2,FALSE) -> ERGO 18mm | I44: Wys. wyp. łączonych (płyta) | K44: 44 | L44: =IF(AND($D$6,$F$25=L42,$G$25=L42),(L12-$G$28)/($G$28+1),$D$11) -> 818.3333333 | M44: =IF(AND($D$6,$F$25=M42,$G$25=M42),(M12-$G$28)/($G$28+1),$D$11) -> 818.3333333 | N44: =IF(OR(AND($D$6,$F$25=N42,$G$25=N42),(AND(laczniki_tak,Wybrany_lacznik=1,System_z_grupy=N42))),(N43-$G$28)/($G$28+1),$D$11) -> - | O44: =IF(AND($D$6,$F$25=O42,$G$25=O42),IF($E$8=4,(O43-$G$28*19)/($G$28+1),(O43-$G$28*9)/($G$28+1)),$D$11) -> - | P44: =IF(AND($D$6,$F$25=P42,$G$25=P42),(P43-$G$28)/($G$28+1),$D$11) -> 818.3333333 | Q44: =N44 -> - | R44: - | S44: - | T44: =IF(AND($D$6,OR(AND($F$25=T42,$G$25=T42),AND(System_z_grupy=$D$28,Lacznik_z_grupy=$D$29))),IF($E$8=6,(T43-$G$28*7.5)/($G$28+1),(T43-$G$28)/(1+$G$28)),$D$11) -> - | U44: =IF(AND($D$6,OR(AND($F$25=U42,$G$25=U42),AND(System_z_grupy=$D$28,Lacznik_z_grupy=$D$29))),IF($E$8=6,(U43-$G$28*7.5)/($G$28+1),(U43-$G$28)/(1+$G$28)),$D$11) -> - | V44: =IF(AND($D$6,OR(AND($F$25=V42,$G$25=V42),AND(System_z_grupy=$D$28,Lacznik_z_grupy=$D$29))),IF($E$8=6,(V43-$G$28*7.5)/($G$28+1),(V43-$G$28)/(1+$G$28)),$D$11) -> - | W44: =IF(AND($D$6,$F$25=W42,$G$25=W42),(W43-$G$28)/($G$28+1),$D$11) -> 818.3333333 | X44: =O44 -> - | Y44: =IF(AND($D$6,$F$25=Y42,$G$25=Y42),(Y43-$G$28)/($G$28+1),$D$11) -> 818.3333333 | Z44: =O44 -> - | AA44: =IF(AND($D$6,$F$25=AA42,$G$25=AA42),(AA43-$G$28)/($G$28+1),$D$11) -> 818.3333333 | AB44: =N44 -> - | AC44: =O44 -> - | AD44: =IF(AND($D$6,$F$25=AD42,$G$25=AD42),(AD12-$G$28)/($G$28+1),$D$11) -> 818.3333333 | AE44: =IF(AND($D$6,$F$25=AE42,$G$25=AE42),IF($E$8=4,(AE43-$G$28*19)/($G$28+1),(AE43-$G$28*9)/($G$28+1)),$D$11) -> - | AF44: =IF(AND($D$6,$F$25=AF42,$G$25=AF42),(AF12-$G$28)/($G$28+1),$D$11) -> 818.3333333 | AG44: =IF(AND($D$6,$F$25=AG42,$G$25=AG42),IF($E$8=4,(AG43-$G$28*19)/($G$28+1),(AG43-$G$28*9)/($G$28+1)),$D$11) -> - | AH44: =V44 -> - | AI44: =V44 -> - | AJ44: =IF(AND(laczniki_tak,H25=1,Wybrany_lacznik=G15),(AJ43-l._lacznikow*1)/(l._lacznikow+1),D11) -> - | AK44: - | AL44: 44 | AM44: 818.3333333
I45: Wys. wyp. 4mm bez łączników | K45: 45 | L45: - | M45: - | N45: - | O45: =O16 -> 2399 | P45: - | Q45: 2455 | R45: - | S45: - | T45: 2399 | U45: 2399 | V45: 2399 | W45: - | X45: 2399 | Y45: =Y16 -> - | Z45: 2399 | AA45: - | AB45: - | AC45: =AC16 -> 2399 | AD45: =AD16 -> - | AE45: 2399 | AF45: - | AG45: 2399 | AH45: 2399 | AI45: 2399 | AJ45: =AJ16 -> 2454 | AK45: - | AL45: 45 | AM45: -
I46: Wys. wyp. łączonych (szkło) | K46: 46 | L46: - | M46: - | N46: - | O46: =IF(AND($D$6,$F$25=O42,$G$25=O42),IF($E$8=4,(O45-$G$28*11)/($G$28+1),(O45-$G$28)/($G$28+1)),$D$11) -> - | P46: - | Q46: =IF(Q44=D11,D11,Q44-1) -> - | R46: - | S46: - | T46: =IF(AND($D$6,OR(AND($F$25=T42,$G$25=T42),AND(System_z_grupy=$D$28,Lacznik_z_grupy=$D$29))),IF($E$8=6,(T45-$G$28*10)/($G$28+1),(T45-$G$28*4)/(1+$G$28)),$D$11) -> - | U46: =IF(AND($D$6,OR(AND($F$25=U42,$G$25=U42),AND(System_z_grupy=$D$28,Lacznik_z_grupy=$D$29))),IF($E$8=6,(U45-$G$28*10)/($G$28+1),(U45-$G$28*4)/(1+$G$28)),$D$11) -> - | V46: =IF(AND($D$6,OR(AND($F$25=V42,$G$25=V42),AND(System_z_grupy=$D$28,Lacznik_z_grupy=$D$29))),IF($E$8=6,(V45-$G$28*10)/($G$28+1),(V45-$G$28*4)/(1+$G$28)),$D$11) -> - | W46: - | X46: =O46 -> - | Y46: - | Z46: =O46 -> - | AA46: - | AB46: - | AC46: =O46 -> - | AD46: - | AE46: =IF(AND($D$6,$F$25=AE42,$G$25=AE42),IF($E$8=4,(AE45-$G$28*11)/($G$28+1),(AE45-$G$28)/($G$28+1)),$D$11) -> - | AF46: - | AG46: =IF(AND($D$6,$F$25=AG42,$G$25=AG42),IF($E$8=4,(AG45-$G$28*11)/($G$28+1),(AG45-$G$28)/($G$28+1)),$D$11) -> - | AH46: =V46 -> - | AI46: =V46 -> - | AJ46: =IF(AND(laczniki_tak,H25=1,Wybrany_lacznik=G15),(AJ45-l._lacznikow*4)/(l._lacznikow+1),D11) -> - | AK46: - | AL46: 46 | AM46: -

Sheet OVERLINE
D9: 1. | E9: =Opisy!A15 -> Vyber profil
D12: 2. | E12: =Opisy!A81 -> Rozmery podľa:
C14: =Opisy!A82 -> dutiny | G14: =Opisy!A83 -> Korpusu skrine
J17: =Opisy!A84 -> Výška: | K17: 2300 | L17: mm | M17: =Opisy!A87 -> Maximálne 3000mm
J19: =Opisy!A85 -> Šírka: | K19: 2000 | L19: mm | M19: =Opisy!A88 -> Maximálne 4050mm
J21: =Opisy!A86 -> Hĺbka: | K21: 700 | L21: mm | M21: =Opisy!A141 -> Minimum 300mm
D29: 3. | E29: =Opisy!A154 -> Ostatné rozmery:
E31: =Opisy!A89 -> Hrúbka DTD na korpus Gp : | H31: 18 | I31: =Opisy!A93 -> mm (minimum 16 mm)
E32: =Opisy!A148 -> Hrúbka horného panelu: | I32: =IF(Grub.plyty.korp>Grub.wien.gorn,Opisy!A153,Opisy!A50) -> mm
E33: =Opisy!A91 -> Hrúbka DTD dverí Gd: | H33: 18 | I33: =Opisy!A95 -> mm (16 - 22 mm)
E34: =Opisy!A90 -> Výška sokla Hc : | H34: 100 | I34: =Opisy!A94 -> mm (minimum 50 mm)
E35: =Opisy!A92 -> Šírka prekritia Z: | H35: 20 | I35: =Opisy!A96 -> mm (minimum 20 mm)
H38: =IF(M49="-"," ",IF(M49>50,Opisy!$A$146," ")) -> 
F39: =Opisy!A98 -> Rozmery skrine - naložené dvere
F40: =Opisy!A99 -> Korpus: | H40: =Opisy!A108 -> Rozmer sokla: | J40: =Opisy!A109 -> Ľavý bok: | L40: =Opisy!A111 -> Zvyslé delenie:
F41: =Opisy!A100 -> Výška Ws: | G41: =IF(OR(Wys.wprowadzana>3000,Szer.wprowadzana>4050,Gleb.wprowadzana<300,Wys.cokolu<50),"-",'Overline - Obliczenia'!P4) -> 2275 | H41: =J17 -> Výška: | I41: =IF(OR(Wys.wprowadzana>3000,Szer.wprowadzana>4050,Gleb.wprowadzana<300,Wys.cokolu<50),"-",'Overline - Obliczenia'!R4) -> 100 | J41: =J17 -> Výška: | K41: =IF(OR(Wys.wprowadzana>3000,Szer.wprowadzana>4050,Gleb.wprowadzana<300,Wys.cokolu<50),"-",'Overline - Obliczenia'!T4) -> 2275 | L41: =F45 -> Výška Wu: | M41: =IF(OR(Wys.wprowadzana>3000,Szer.wprowadzana>4050,Gleb.wprowadzana<300,Wys.cokolu<50),"-",'Overline - Obliczenia'!V4) -> 2094
F42: =Opisy!A101 -> Šírka Ss: | G42: =IF(OR(Wys.wprowadzana>3000,Szer.wprowadzana>4050,Gleb.wprowadzana<300,Wys.cokolu<50),"-",'Overline - Obliczenia'!P5) -> 1993 | H42: =J19 -> Šírka: | I42: =IF(OR(Wys.wprowadzana>3000,Szer.wprowadzana>4050,Gleb.wprowadzana<300,Wys.cokolu<50),"-",'Overline - Obliczenia'!R5) -> 1957 | J42: =J21 -> Hĺbka: | K42: =IF(OR(Wys.wprowadzana>3000,Szer.wprowadzana>4050,Gleb.wprowadzana<300,Wys.cokolu<50),"-",'Overline - Obliczenia'!T5) -> 678 | L42: =Opisy!A149 -> Hĺbka Gw: | M42: =IF(OR(Wys.wprowadzana>3000,Szer.wprowadzana>4050,Gleb.wprowadzana<300,Wys.cokolu<50),"-",'Overline - Obliczenia'!V5) -> 633
F43: =Opisy!A102 -> Hĺbka Gs: | G43: =IF(OR(Wys.wprowadzana>3000,Szer.wprowadzana>4050,Gleb.wprowadzana<300,Wys.cokolu<50),"-",'Overline - Obliczenia'!P6) -> 700 | H43: =Opisy!A118 -> Hrúbka: | I43: =IF(OR(Wys.wprowadzana>3000,Szer.wprowadzana>4050,Gleb.wprowadzana<300,Wys.cokolu<50),"-",'Overline - Obliczenia'!R6) -> 18 | J43: =H43 -> Hrúbka: | K43: =IF(OR(Wys.wprowadzana>3000,Szer.wprowadzana>4050,Gleb.wprowadzana<300,Wys.cokolu<50),"-",'Overline - Obliczenia'!T6) -> 18 | L43: =J43 -> Hrúbka: | M43: =IF(OR(Wys.wprowadzana>3000,Szer.wprowadzana>4050,Gleb.wprowadzana<300,Wys.cokolu<50),"-",'Overline - Obliczenia'!V6) -> 18
F44: =Opisy!A103 -> Vnútro korpusu: | H44: =Opisy!A107 -> Panel horný a spodný | J44: =Opisy!A110 -> Pravý bok: | L44: =Opisy!A112 -> Rozmery dverí:
F45: =Opisy!A104 -> Výška Wu: | G45: =IF(OR(Wys.wprowadzana>3000,Szer.wprowadzana>4050,Gleb.wprowadzana<300,Wys.cokolu<50),"-",'Overline - Obliczenia'!P8) -> 2094 | H45: =J19 -> Šírka: | I45: =IF(OR(Wys.wprowadzana>3000,Szer.wprowadzana>4050,Gleb.wprowadzana<300,Wys.cokolu<50),"-",'Overline - Obliczenia'!R8) -> 1957 | J45: =J41 -> Výška: | K45: =IF(OR(Wys.wprowadzana>3000,Szer.wprowadzana>4050,Gleb.wprowadzana<300,Wys.cokolu<50),"-",'Overline - Obliczenia'!T8) -> 2275 | L45: =Opisy!A114 -> Výška Wd: | M45: =IF(OR(Wys.wprowadzana>3000,Szer.wprowadzana>4050,Gleb.wprowadzana<300,Wys.cokolu<50),"-",'Overline - Obliczenia'!V8) -> 2198
F46: =Opisy!A105 -> Šírka Sw: | G46: =IF(OR(Wys.wprowadzana>3000,Szer.wprowadzana>4050,Gleb.wprowadzana<300,Wys.cokolu<50),"-",'Overline - Obliczenia'!P9) -> 1957 | H46: =J21 -> Hĺbka: | I46: =IF(OR(Wys.wprowadzana>3000,Szer.wprowadzana>4050,Gleb.wprowadzana<300,Wys.cokolu<50),"-",'Overline - Obliczenia'!R9) -> 643 | J46: =J42 -> Hĺbka: | K46: =IF(OR(Wys.wprowadzana>3000,Szer.wprowadzana>4050,Gleb.wprowadzana<300,Wys.cokolu<50),"-",'Overline - Obliczenia'!T9) -> 649 | L46: =Opisy!A115 -> Šírka Sd: | M46: =IF(OR(Wys.wprowadzana>3000,Szer.wprowadzana>4050,Gleb.wprowadzana<300,Wys.cokolu<50),"-",'Overline - Obliczenia'!V9) -> 1006.5
F47: =Opisy!A106 -> Hĺbka Gu: | G47: =IF(OR(Wys.wprowadzana>3000,Szer.wprowadzana>4050,Gleb.wprowadzana<300,Wys.cokolu<50),"-",'Overline - Obliczenia'!P10) -> 643 | H47: =Opisy!A150 -> Hrúbka dolného | I47: =IF(OR(Wys.wprowadzana>3000,Szer.wprowadzana>4050,Gleb.wprowadzana<300,Wys.cokolu<50),"-",'Overline - Obliczenia'!R10) -> 18 | J47: =J43 -> Hrúbka: | K47: =IF(OR(Wys.wprowadzana>3000,Szer.wprowadzana>4050,Gleb.wprowadzana<300,Wys.cokolu<50),"-",'Overline - Obliczenia'!T10) -> 18 | L47: =Opisy!A116 -> Hĺbka Gd: | M47: =IF(OR(Wys.wprowadzana>3000,Szer.wprowadzana>4050,Gleb.wprowadzana<300,Wys.cokolu<50),"-",'Overline - Obliczenia'!V10) -> 18
H48: =Opisy!A151 -> Hrúbka horného | I48: =IF(OR(Wys.wprowadzana>3000,Szer.wprowadzana>4050,Gleb.wprowadzana<300,Wys.cokolu<50),"-",'Overline - Obliczenia'!R11) -> 18
C49: =C63 -> * - Hmotnosť krídla je vypočítana tak, aby splnila z DTD ( 620 kg / M3 ) alebo sklo ( 2800 kg / M3 ) bez škár | K49: =Opisy!A145 -> Váha krídla ( kg ) | M49: =IF(M47="-","-",(M45*M46*M47/1000000000)*620+0.5) -> 25.18912292
H52: =IF(M63="-"," ",IF(M63>50,Opisy!$A$146," ")) -> 
F53: =Opisy!A113 -> Rozmery skrine - vložené dvere
F54: =F40 -> Korpus: | H54: =H40 -> Rozmer sokla: | J54: =J40 -> Ľavý bok: | L54: =L40 -> Zvyslé delenie:
F55: Výška Ws: | G55: =IF(OR(Wys.wprowadzana>3000,Szer.wprowadzana>4050,Gleb.wprowadzana<300,Wys.cokolu<50),"-",'Overline - Obliczenia'!P15) -> 2275 | H55: Výška: | I55: =IF(OR(Wys.wprowadzana>3000,Szer.wprowadzana>4050,Gleb.wprowadzana<300,Wys.cokolu<50),"-",'Overline - Obliczenia'!R15) -> 100 | J55: Výška: | K55: =IF(OR(Wys.wprowadzana>3000,Szer.wprowadzana>4050,Gleb.wprowadzana<300,Wys.cokolu<50),"-",'Overline - Obliczenia'!T15) -> 2275 | L55: Výška Wu: | M55: =IF(OR(Wys.wprowadzana>3000,Szer.wprowadzana>4050,Gleb.wprowadzana<300,Wys.cokolu<50),"-",'Overline - Obliczenia'!V15) -> 2094
F56: Šírka Ss: | G56: =IF(OR(Wys.wprowadzana>3000,Szer.wprowadzana>4050,Gleb.wprowadzana<300,Wys.cokolu<50),"-",'Overline - Obliczenia'!P16) -> 1993 | H56: Šírka: | I56: =IF(OR(Wys.wprowadzana>3000,Szer.wprowadzana>4050,Gleb.wprowadzana<300,Wys.cokolu<50),"-",'Overline - Obliczenia'!R16) -> 1957 | J56: Hĺbka: | K56: =IF(OR(Wys.wprowadzana>3000,Szer.wprowadzana>4050,Gleb.wprowadzana<300,Wys.cokolu<50),"-",'Overline - Obliczenia'!T16) -> 700 | L56: Hĺbka Gw: | M56: =IF(OR(Wys.wprowadzana>3000,Szer.wprowadzana>4050,Gleb.wprowadzana<300,Wys.cokolu<50),"-",'Overline - Obliczenia'!V16) -> 628
F57: Hĺbka Gs: | G57: =IF(OR(Wys.wprowadzana>3000,Szer.wprowadzana>4050,Gleb.wprowadzana<300,Wys.cokolu<50),"-",'Overline - Obliczenia'!P17) -> 700 | H57: Hrúbka: | I57: =IF(OR(Wys.wprowadzana>3000,Szer.wprowadzana>4050,Gleb.wprowadzana<300,Wys.cokolu<50),"-",'Overline - Obliczenia'!R17) -> 18 | J57: Hrúbka: | K57: =IF(OR(Wys.wprowadzana>3000,Szer.wprowadzana>4050,Gleb.wprowadzana<300,Wys.cokolu<50),"-",'Overline - Obliczenia'!T17) -> 18 | L57: Hrúbka: | M57: =IF(OR(Wys.wprowadzana>3000,Szer.wprowadzana>4050,Gleb.wprowadzana<300,Wys.cokolu<50),"-",'Overline - Obliczenia'!V17) -> 18
F58: Vnútro korpusu: | H58: Panel horný a spodný | J58: Pravý bok: | L58: Rozmery dverí:
F59: Výška Wu: | G59: =IF(OR(Wys.wprowadzana>3000,Szer.wprowadzana>4050,Gleb.wprowadzana<300,Wys.cokolu<50),"-",'Overline - Obliczenia'!P19) -> 2094 | H59: Šírka: | I59: =IF(OR(Wys.wprowadzana>3000,Szer.wprowadzana>4050,Gleb.wprowadzana<300,Wys.cokolu<50),"-",'Overline - Obliczenia'!R19) -> 1957 | J59: Výška: | K59: =IF(OR(Wys.wprowadzana>3000,Szer.wprowadzana>4050,Gleb.wprowadzana<300,Wys.cokolu<50),"-",'Overline - Obliczenia'!T19) -> 2275 | L59: Výška Wd: | M59: =IF(OR(Wys.wprowadzana>3000,Szer.wprowadzana>4050,Gleb.wprowadzana<300,Wys.cokolu<50),"-",'Overline - Obliczenia'!V19) -> 2198
F60: Šírka Sw: | G60: =IF(OR(Wys.wprowadzana>3000,Szer.wprowadzana>4050,Gleb.wprowadzana<300,Wys.cokolu<50),"-",'Overline - Obliczenia'!P20) -> 1957 | H60: Hĺbka: | I60: =IF(OR(Wys.wprowadzana>3000,Szer.wprowadzana>4050,Gleb.wprowadzana<300,Wys.cokolu<50),"-",'Overline - Obliczenia'!R20) -> 638 | J60: Hĺbka: | K60: =IF(OR(Wys.wprowadzana>3000,Szer.wprowadzana>4050,Gleb.wprowadzana<300,Wys.cokolu<50),"-",'Overline - Obliczenia'!T20) -> 671 | L60: Šírka Sd: | M60: =IF(OR(Wys.wprowadzana>3000,Szer.wprowadzana>4050,Gleb.wprowadzana<300,Wys.cokolu<50),"-",'Overline - Obliczenia'!V20) -> 988.5
F61: Hĺbka Gu: | G61: =IF(OR(Wys.wprowadzana>3000,Szer.wprowadzana>4050,Gleb.wprowadzana<300,Wys.cokolu<50),"-",'Overline - Obliczenia'!P21) -> 638 | H61: Hrúbka dolného | I61: =IF(OR(Wys.wprowadzana>3000,Szer.wprowadzana>4050,Gleb.wprowadzana<300,Wys.cokolu<50),"-",'Overline - Obliczenia'!R21) -> 18 | J61: Hrúbka: | K61: =IF(OR(Wys.wprowadzana>3000,Szer.wprowadzana>4050,Gleb.wprowadzana<300,Wys.cokolu<50),"-",'Overline - Obliczenia'!T21) -> 18 | L61: Hĺbka Gd: | M61: =IF(OR(Wys.wprowadzana>3000,Szer.wprowadzana>4050,Gleb.wprowadzana<300,Wys.cokolu<50),"-",'Overline - Obliczenia'!V21) -> 18
H62: Hrúbka horného | I62: =IF(OR(Wys.wprowadzana>3000,Szer.wprowadzana>4050,Gleb.wprowadzana<300,Wys.cokolu<50),"-",'Overline - Obliczenia'!R22) -> 18
C63: =Opisy!A32 -> * - Hmotnosť krídla je vypočítana tak, aby splnila z DTD ( 620 kg / M3 ) alebo sklo ( 2800 kg / M3 ) bez škár | K63: =K49 -> Váha krídla ( kg ) | M63: =IF(M61="-","-",(M59*M60*M61/1000000000)*620+0.5) -> 24.74758868
M67: GTV Poland Sp. z o.o. Sp. k.
M68: ul. Przejazdowa 21, 05-800 Pruszków, Polska
M69: www.gtv.com.pl
M70: gtv.tech@gtv.com.pl

Sheet Overline - Obliczenia (hidden)
B2: Wybrany system: | C2: 1 | D2: =VLOOKUP(C2,A8:B38,2,FALSE) -> OVERILINE | F2: Grubość płyty na korpus Gp | I2: =VLOOKUP(H17,F18:G20,2,FALSE) -> 18 | O2: Wymiary szafy - drzwi nakładane
B3: Typ zabudowy: | C3: 1 | F3: =Opisy!A148 -> Hrúbka horného panelu: | I3: =VLOOKUP(J17,F18:G20,2,0) -> 18 | O3: Korpus: | Q3: Wymiary cokołu | S3: Bok lewy | U3: Przegrody pionowe
B4: Układ drzwi | F4: Grubość płyty drzwi Gd | I4: =VLOOKUP(I17,F18:G20,2,FALSE) -> 18 | O4: Wysokość Ws | P4: =Wys.szafy -> 2275 | Q4: Wysokość | R4: =Wys.cokolu -> 100 | S4: Wysokość | T4: =Wys.szafy -> 2275 | U4: Wysokość | V4: =Wys.uzyt.szafy -> 2094
F5: Wysokość cokołu Hc | I5: =OVERLINE!H34 -> 100 | O5: Szerokość Ss | P5: =Szer.szafy -> 1993 | Q5: Długość | R5: =P9 -> 1957 | S5: Głębokość | T5: =P10+35 -> 678 | U5: Głębokość | V5: =P10-10 -> 633
B6: Systemy podwieszane | F6: Szerokość zakładki Z | I6: =OVERLINE!H35 -> 20 | O6: Głębokość Gs | P6: =Gleb.szafy -> 700 | Q6: Grubość | R6: =Grub.plyty.korp -> 18 | S6: Grubość | T6: =Grub.plyty.korp -> 18 | U6: Grubość | V6: =Grub.plyty.korp -> 18
O7: Wnętrze korpusu: | Q7: Wieniec górny i dolny | S7: Bok prawy | U7: Wymiary drzwi
F8: Wysokość szafy | H8: =IF(AND(OR(Wybrany_System_podw=1,Wybrany_System_podw=2),Typ_zabudowy=1),Wys.wprowadzana-25,Wys.wprowadzana) -> 2275 | O8: Wysokość Wu | P8: =Wys.uzyt.szafy -> 2094 | Q8: Szerokość | R8: =P9 -> 1957 | S8: Wysokość | T8: =Wys.szafy -> 2275 | U8: Wysokość Wd | V8: =IF(Wybrany_System_podw=1,Wys.szafy-Wys.cokolu-Grub.plyty.korp+41,IF(Wybrany_System_podw=2,Wys.szafy-Wys.cokolu-Grub.plyty.korp+39,"-")) -> 2198
A9: 1 | B9: OVERILINE | F9: Szerokość szafy | H9: =IF(AND(OR(Wybrany_System_podw=1,Wybrany_System_podw=2),Typ_zabudowy=1),Szer.wprowadzana-7,Szer.wprowadzana) -> 1993 | O9: Szerokość Sw | P9: =Szer.uzyt.szafy -> 1957 | Q9: Głębokość | R9: =P10 -> 643 | S9: Głębokość | T9: =P10+6 -> 649 | U9: Szerokość Sd | V9: =(Szer.szafy+Szer.zakladki)/2 -> 1006.5
A10: 2 | B10: OVERLINE PLUS | F10: Głębokość szafy | H10: =Gleb.wprowadzana -> 700 | O10: Głębokość Gu | P10: =Gleb.uzyt.szafy+5 -> 643 | Q10: Grubość Dolnego | R10: =Grub.plyty.korp -> 18 | S10: Grubość | T10: =Grub.plyty.korp -> 18 | U10: Grubość Gd | V10: =Grub.drzwi -> 18
Q11: Grubość górnego | R11: =Grub.wien.gorn -> 18
F12: Wysokość użyteczna szafy | I12: =Wys.szafy-Wys.cokolu-(Grub.wien.gorn+Grub.plyty.korp)-45 -> 2094
F13: Szerokość użyteczna szafy | I13: =Szer.szafy-2*Grub.plyty.korp -> 1957 | O13: Wymiary szafy - drzwi wpuszczane
F14: Głębokość użyteczna szafy | I14: =Gleb.szafy-Grub.drzwi-44 -> 638 | O14: Korpus: | Q14: Wymiary cokołu | S14: Bok lewy | U14: Przegrody pionowe
O15: Wysokość Ws | P15: =Wys.szafy -> 2275 | Q15: Wysokość | R15: =Wys.cokolu -> 100 | S15: Wysokość | T15: =Wys.szafy -> 2275 | U15: Wysokość | V15: =Wys.uzyt.szafy -> 2094
F16: Grubości płyt | H16: korpus | I16: drzwi | J16: Wieniec | O16: Szerokość Ss | P16: =Szer.szafy -> 1993 | Q16: Długość | R16: =Szer.uzyt.szafy -> 1957 | S16: Głębokość | T16: =Gleb.uzyt.szafy+Grub.drzwi+44 -> 700 | U16: Głębokość | V16: =Gleb.uzyt.szafy-10 -> 628
H17: 2 | I17: 2 | J17: 2 | O17: Głębokość Gs | P17: =Gleb.szafy -> 700 | Q17: Grubość | R17: =Grub.plyty.korp -> 18 | S17: Grubość | T17: =Grub.plyty.korp -> 18 | U17: Grubość | V17: =Grub.plyty.korp -> 18
F18: 1 | G18: 16 | O18: Wnętrze korpusu: | Q18: Wieniec górny i dolny | S18: Bok prawy | U18: Wymiary drzwi
F19: 2 | G19: 18 | O19: Wysokość Wu | P19: =Wys.uzyt.szafy -> 2094 | Q19: Szerokość | R19: =P20 -> 1957 | S19: Wysokość | T19: =Wys.szafy -> 2275 | U19: Wysokość Wd | V19: =V8 -> 2198
F20: 3 | G20: 22 | O20: Szerokość Sw | P20: =Szer.uzyt.szafy -> 1957 | Q20: Głębokość | R20: =P21 -> 638 | S20: Głębokość | T20: =Gleb.uzyt.szafy+Grub.drzwi+15 -> 671 | U20: Szerokość Sd | V20: =(Szer.szafy-2*Grub.plyty.korp+Szer.zakladki)/2 -> 988.5
O21: Głębokość Gu | P21: =Gleb.uzyt.szafy -> 638 | Q21: Grubość dolnego | R21: =Grub.plyty.korp -> 18 | S21: Grubość | T21: =Grub.plyty.korp -> 18 | U21: Grubość Gd | V21: =Grub.drzwi -> 18
F22: Warunek grubości płyty na korpus i wienca górnego | Q22: Grubość górnego | R22: =Grub.wien.gorn -> 18
F23: =IF(Grub.plyty.korp>Grub.wien.gorn,Opisy!A153) -> FALSE

Sheet QUANTUM
A12: 1. | B12: =Opisy!A15 -> Vyber profil
A14: 2. | B14: =Opisy!A119 -> Možnosti montáže: | H14: 3. | I14: =Opisy!A128 -> Výber montáže
A16: QUANTUM
I17: =Opisy!A129 -> Varianta A
A24: QUANTUM R | I24: =Opisy!A130 -> Varianta B
A32: 4. | B32: =Opisy!A124 -> Rozmery otvoru: | E32: =Opisy!A125 -> Výška WO: | F32: 2200 | G32: =E40 -> mm | H32: =IF(AND(Wybr.system.przejsciowy>3,QUANTUM!D46>2700),Opisy!A142," ") -> 
E33: =Opisy!A126 -> Šírka SO: | F33: 1200 | G33: =E39 -> mm | H33: =IF(AND(Wybr.system.przejsciowy>3,'Quantum - obliczenia'!$G$26,$D$60>6000,'Quantum - obliczenia'!$G$27<3),Opisy!A144,IF(AND('Quantum - obliczenia'!$G$26,$D$60>3000,'Quantum - obliczenia'!$G$27=3),Opisy!A143,IF(AND(Wybr.system.przejsciowy>3,D60>6000),Opisy!A144," "))) -> 
E34: =Opisy!A137 -> Šírka prekrytia X: | F34: 46 | G34: =G32 -> mm | H34: =Opisy!A127 -> <----- Pre skryté vedenie Xmin = 46mm
H35: =IF(AND(Wybr.system.przejsciowy=2,MAX(H39:L39)>50),Opisy!A146,IF(AND(Wybr.system.przejsciowy>3,MAX(QUANTUM!M39:N39)>50),Opisy!A146," ")) -> 
B36: =Opisy!A132 -> Výpočty pre bezrámové riešenie ( Quantum ) | H36: =Opisy!A145 -> Váha krídla ( kg )
H37: QUANTUM | M37: QUANTUM R
B38: =Opisy!A138 -> Rozmery krídla dverí: | G38: =Opisy!A118 -> Hrúbka: | H38: 16 | I38: 18 | J38: 22 | K38: 25 | L38: 28 | M38: 4 | N38: 10
B39: =Opisy!A56 -> Výška dverí | C39: WD | D39: =IF('Quantum - obliczenia'!$D$1='Quantum - obliczenia'!$B$4,HLOOKUP(Opcja.montazu,'Quantum - obliczenia'!G2:I6,3,FALSE),"-") -> - | E39: =E40 -> mm | G39: =Opisy!A152 -> Váha: | H39: =IF($D$39="-","-",$D$39*$D$40*H38*620/1000000000+0.34) -> - | I39: =IF($D$39="-","-",$D$39*$D$40*I38*620/1000000000+0.34) -> - | J39: - | K39: - | L39: - | M39: =IF(Wybr.system.przejsciowy>3,VLOOKUP('Quantum - obliczenia'!$H$43,'Quantum - obliczenia'!$E$42:$G$49,3,0),"-") -> 31.893688 | N39: =IF(Wybr.system.przejsciowy>3,VLOOKUP('Quantum - obliczenia'!$H$42,'Quantum - obliczenia'!$E$42:$G$49,3,0),"-") -> 19.1846902
B40: =Opisy!A55 -> Šírka dverí | C40: SD | D40: =IF('Quantum - obliczenia'!D1='Quantum - obliczenia'!B4,HLOOKUP(Opcja.montazu,'Quantum - obliczenia'!G2:I5,2,FALSE),"-") -> - | E40: =Opisy!A50 -> mm | H40: =Opisy!A32 -> * - Hmotnosť krídla je vypočítana tak, aby splnila z DTD ( 620 kg / M3 ) alebo sklo ( 2800 kg / M3 ) bez škár
B41: =Opisy!A131 -> Dĺžka koľajnice | C41: DT | D41: =IF('Quantum - obliczenia'!D1='Quantum - obliczenia'!B4,HLOOKUP(Opcja.montazu,'Quantum - obliczenia'!G2:I6,4,FALSE),"-") -> - | E41: =E40 -> mm | F41: =IF(AND(Wybr.system.przejsciowy=2,D41>3000),Opisy!A147," ") -> 
B43: =Opisy!A133 -> Výpočty pre rámové riešenie ( Quantum R )
B45: =Opisy!A138 -> Rozmery krídla dverí: | H45: =Opisy!A35 -> "H" profily
B46: =B39 -> Výška dverí | C46: WD | D46: =IF(Wybr.system.przejsciowy>3,HLOOKUP(Opcja.montazu,'Quantum - obliczenia'!$G$2:$I$5,'Quantum - obliczenia'!L4,FALSE),"-") -> 2220 | E46: =E47 -> mm
B47: =B40 -> Šírka dverí | C47: SD | D47: =IF(Wybr.system.przejsciowy>3,HLOOKUP(Opcja.montazu,'Quantum - obliczenia'!$G$2:$I$5,'Quantum - obliczenia'!L3,FALSE),"-") -> 1246 | E47: =Opisy!G50 -> mm
B48: =B41 -> Dĺžka koľajnice | C48: DT | D48: =IF(Wybr.system.przejsciowy>3,HLOOKUP(Opcja.montazu,'Quantum - obliczenia'!$G$2:$I$5,'Quantum - obliczenia'!L5,FALSE),"-") -> 2446 | E48: =E47 -> mm | F48: =IF(AND(Wybr.system.przejsciowy>3,D48>3000),Opisy!A147," ") -> 
B50: =Opisy!A134 -> Rozmery výplne z DTD 10mm | G50: =IF(AND(Wybr.system.przejsciowy>3,Oblicz.locznikow),"↓10/4mm↓"," ") -> 
B51: =Opisy!A60 -> Výplň 10mm | C51: SW10 | D51: =IF(Wybr.system.przejsciowy>3,HLOOKUP(Opcja.montazu,'Quantum - obliczenia'!$F$2:$K$17,'Quantum - obliczenia'!L8,FALSE),"-") -> 1203 | E51: =$E$39 -> mm
B52: =Opisy!A65 -> Výplň 10mm | C52: WW10 | D52: =IF(Wybr.system.przejsciowy>3,HLOOKUP(Opcja.montazu,'Quantum - obliczenia'!$F$2:$K$17,'Quantum - obliczenia'!L9,FALSE),"-") -> 2127 | E52: =$E$39 -> mm
B54: =Opisy!A135 -> Rozmery výplne zo skla 4mm
B55: =Opisy!A61 -> Výplň 4mm | C55: SW4 | D55: =IF(Wybr.system.przejsciowy>3,HLOOKUP(Opcja.montazu,'Quantum - obliczenia'!$F$2:$K$17,'Quantum - obliczenia'!L12,FALSE),"-") -> 1200 | E55: =$E$39 -> mm
B56: =Opisy!A66 -> Výplň 4mm | C56: WW4 | D56: =IF(Wybr.system.przejsciowy>3,HLOOKUP(Opcja.montazu,'Quantum - obliczenia'!$F$2:$K$17,'Quantum - obliczenia'!L13,FALSE),"-") -> 2126 | E56: =$E$39 -> mm
B58: =Opisy!A136 -> Rozmery hliníkových profilov | G58: =Opisy!A40 -> i ( počet profilov "H" ) | I58: 2
B59: =Opisy!A67 -> Dĺžka madla | C59: DR | D59: =IF(Wybr.system.przejsciowy>3,HLOOKUP(Opcja.montazu,'Quantum - obliczenia'!$F$2:$K$17,'Quantum - obliczenia'!L16,FALSE),"-") -> 2220 | E59: =$E$39 -> mm | G59: =Opisy!A139 -> Výška z DTD | I59: =HLOOKUP(Opcja.montazu,'Quantum - obliczenia'!$F$2:$I$23,'Quantum - obliczenia'!L22,FALSE) -> -
B60: =Opisy!A68 -> Dĺžka spojovacieho prof. | C60: DLP | D60: =IF(Wybr.system.przejsciowy>3,HLOOKUP(Opcja.montazu,'Quantum - obliczenia'!$F$2:$K$17,'Quantum - obliczenia'!L17,FALSE),"-") -> 1186 | E60: =$E$39 -> mm | G60: =Opisy!A140 -> Výška zo skla | I60: =HLOOKUP(Opcja.montazu,'Quantum - obliczenia'!$F$2:$I$23,'Quantum - obliczenia'!L23,FALSE) -> -
M67: GTV Poland Sp. z o.o. Sp. k.
M68: ul. Przejazdowa 21, 05-800 Pruszków, Polska
M69: www.gtv.com.pl
M70: gtv.tech@gtv.com.pl

Sheet Quantum - obliczenia (hidden)
B1: Wybrany system | C1: 4 | D1: =VLOOKUP(C1,A3:B7,2,FALSE) -> QUANTUM R + ARCO | G1: Opcje montażu | J1: Wariant zabudowy
G2: 1 | H2: 2 | I2: 3 | J2: 4 | K2: 5 | L2: 1
A3: 1 | B3: =Opisy!A156 -> BEZRÁMOVÉ | C3: WO | D3: =QUANTUM!F32 -> 2200 | F3: SD | G3: =HLOOKUP($C$26,J2:K3,2,FALSE) -> 1246 | H3: =HLOOKUP($C$26,J2:K3,2,FALSE) -> 1246 | I3: =HLOOKUP($C$26,J2:K3,2,FALSE) -> 1246 | J3: =Szer.Otw.przej+Szer.zakl.przej*2 -> 1292 | K3: =Szer.Otw.przej+Szer.zakl.przej -> 1246 | L3: 2
A4: 2 | B4: QUANTUM | C4: SO | D4: =QUANTUM!F33 -> 1200 | F4: WD | G4: =IF(AND(Wybr.system.przejsciowy=2,Opcja.montazu=1),Wys.otw.przej-59,Wys.otw.przej-48) -> 2152 | H4: =IF(AND(Wybr.system.przejsciowy=2,Opcja.montazu=2),Wys.otw.przej-61,Wys.otw.przej-50) -> 2150 | I4: =Wys.otw.przej+20 -> 2220 | J4: - | K4: - | L4: 3
A5: 3 | B5: =Opisy!A157 -> RÁMOVÉ | C5: X | D5: =QUANTUM!F34 -> 46 | F5: DT | G5: =HLOOKUP($C$26,$J$2:$K$5,4,FALSE) -> 2446 | H5: =HLOOKUP($C$26,$J$2:$K$5,4,FALSE) -> 2446 | I5: =HLOOKUP($C$26,$J$2:$K$5,4,FALSE) -> 2446 | J5: =Szer.Otw.przej+J3 -> 2492 | K5: =Szer.Otw.przej+K3 -> 2446 | L5: 4
A6: 4 | B6: QUANTUM R + ARCO | L6: 5
A7: 5 | B7: QUANTUM R + FALDA | F7: =Opisy!C134 -> Wymiary wypełnienia z płyty 10mm | L7: 6
F8: SW10 | G8: =G3-43 -> 1203 | H8: =H3-43 -> 1203 | I8: 1203 | L8: 7
B9: Opcje montażu | C9: 3 | F9: WW10 | G9: =G4-93 -> 2059 | H9: =H4-93 -> 2057 | I9: 2127 | L9: 8
B10: =Opisy!A120 -> Priama montáž na strop | L10: 9
B11: =Opisy!A121 -> Montáž na stenu - horné uchytenie | F11: =Opisy!C135 -> Wymiary wypełnienia ze szkła 4mm | L11: 10
B12: =Opisy!A122 -> Montáž do steny - bočné uchytenie | F12: SW4 | G12: =G3-46 -> 1200 | H12: =H3-46 -> 1200 | I12: 1200 | L12: 11
F13: WW4 | G13: =G4-94 -> 2058 | H13: =H4-94 -> 2056 | I13: 2126 | L13: 12
B14: Grubość wypełnienia | C14: 5 | L14: 13
A15: 1 | B15: =B5 -> RÁMOVÉ | F15: =Opisy!C136 -> Wymiary profili aluminiowych | L15: 14
A16: 2 | B16: 10/4 | F16: DR | G16: =G4 -> 2152 | H16: =H4 -> 2150 | I16: 2220 | L16: 15
A17: 3 | B17: =B3 -> BEZRÁMOVÉ | F17: DLP | G17: =G3-60 -> 1186 | H17: =H3-60 -> 1186 | I17: 1186 | L17: 16
A18: 4 | B18: 16 | L18: 17
A19: 5 | B19: 18 | L19: 18
A20: 6 | B20: 22 | L20: 19
A21: 7 | B21: 25 | F21: Obliczenia z łącznikami | L21: 20
A22: 8 | B22: 28 | F22: płyta | G22: =VLOOKUP(Wybrany.lacznik.przej,E30:I32,3,FALSE) -> - | H22: =VLOOKUP(Wybrany.lacznik.przej,E30:I32,4,FALSE) -> - | I22: =VLOOKUP(Wybrany.lacznik.przej,E30:I32,5,FALSE) -> - | L22: 21
F23: szkło | G23: =VLOOKUP(Wybrany.lacznik.przej,E33:I35,3,FALSE) -> - | H23: =VLOOKUP(Wybrany.lacznik.przej,E33:I35,4,FALSE) -> - | I23: =VLOOKUP(Wybrany.lacznik.przej,E33:I35,5,FALSE) -> - | L23: 22
L24: 23
B25: Wariant zabudowy | C25: 2 | L25: 24
A26: 1 | B26: =Opisy!A129 -> Varianta A | C26: =IF(C25=1,4,5) -> 5 | F26: Łączniki (TAK/NIE) | G26: FALSE | L26: 25
A27: 2 | B27: =Opisy!A130 -> Varianta B | F27: Wybrany lacznik | G27: 1 | L27: 26
F28: Warunek oblicznia łączników | G28: =IF(AND(Wybr.system.przejsciowy>3,Oblicz.locznikow),TRUE,FALSE) -> FALSE | L28: 27
F29: Liczba łączników | G29: =QUANTUM!I58 -> 2 | L29: 28
E30: 1 | F30: A-HRS10-XXX-YY | G30: =IF(AND(Policz.laczniki,Wybrany.lacznik.przej=$E$30),(G$9-Liczba.lacznikow*7.5)/(Liczba.lacznikow+1),"-") -> - | H30: =IF(AND(Policz.laczniki,Wybrany.lacznik.przej=$E$30),(H$9-Liczba.lacznikow*7.5)/(Liczba.lacznikow+1),"-") -> - | I30: =IF(AND(Policz.laczniki,Wybrany.lacznik.przej=$E$30),(I$9-Liczba.lacznikow*7.5)/(Liczba.lacznikow+1),"-") -> - | J30: 0.268 | L30: 29
E31: 2 | F31: A-HR10-XXX-YY | G31: =IF(AND(Policz.laczniki,Wybrany.lacznik.przej=$E$31),(G$9-Liczba.lacznikow*1)/(Liczba.lacznikow+1),"-") -> - | H31: =IF(AND(Policz.laczniki,Wybrany.lacznik.przej=$E$31),(H$9-Liczba.lacznikow*1)/(Liczba.lacznikow+1),"-") -> - | I31: =IF(AND(Policz.laczniki,Wybrany.lacznik.przej=$E$31),(I$9-Liczba.lacznikow*1)/(Liczba.lacznikow+1),"-") -> - | J31: 0.185 | L31: 30
E32: 3 | F32: A-HR10FL-XXX-YY | G32: =IF(AND(Policz.laczniki,Wybrany.lacznik.przej=$E$32),(G$9-Liczba.lacznikow*1)/(Liczba.lacznikow+1),"-") -> - | H32: =IF(AND(Policz.laczniki,Wybrany.lacznik.przej=$E$32),(H$9-Liczba.lacznikow*1)/(Liczba.lacznikow+1),"-") -> - | I32: =IF(AND(Policz.laczniki,Wybrany.lacznik.przej=$E$32),(I$9-Liczba.lacznikow*1)/(Liczba.lacznikow+1),"-") -> - | J32: 0.134 | L32: 31
E33: 1 | F33: A-HRS10-XXX-YY | G33: =IF(AND(Policz.laczniki,Wybrany.lacznik.przej=$E$30),(G13-Liczba.lacznikow*10.5)/(Liczba.lacznikow+1),"-") -> - | H33: =IF(AND(Policz.laczniki,Wybrany.lacznik.przej=$E$30),(H13-Liczba.lacznikow*10.5)/(Liczba.lacznikow+1),"-") -> - | I33: =IF(AND(Policz.laczniki,Wybrany.lacznik.przej=$E$30),(I13-Liczba.lacznikow*10.5)/(Liczba.lacznikow+1),"-") -> -
E34: 2 | F34: A-HR10-XXX-YY | G34: =IF(AND(Policz.laczniki,Wybrany.lacznik.przej=$E$31),(G13-Liczba.lacznikow*4)/(Liczba.lacznikow+1),"-") -> - | H34: =IF(AND(Policz.laczniki,Wybrany.lacznik.przej=$E$31),(H13-Liczba.lacznikow*4)/(Liczba.lacznikow+1),"-") -> - | I34: =IF(AND(Policz.laczniki,Wybrany.lacznik.przej=$E$31),(I13-Liczba.lacznikow*4)/(Liczba.lacznikow+1),"-") -> -
E35: 3 | F35: A-HR10FL-XXX-YY | G35: =IF(AND(Policz.laczniki,Wybrany.lacznik.przej=$E$32),(G13-Liczba.lacznikow*4)/(Liczba.lacznikow+1),"-") -> - | H35: =IF(AND(Policz.laczniki,Wybrany.lacznik.przej=$E$32),(H13-Liczba.lacznikow*4)/(Liczba.lacznikow+1),"-") -> - | I35: =IF(AND(Policz.laczniki,Wybrany.lacznik.przej=$E$32),(I13-Liczba.lacznikow*4)/(Liczba.lacznikow+1),"-") -> -
B41: Obliczenia wagi QUANTUM R | C41: ARCO | D41: FALDA | E41: Warunek wypełnienia tabeli z wagami do quantum r
C42: ='Obliczenia-dolny'!U4 -> 0.418 | D42: ='Obliczenia-dolny'!V4 -> 0.463 | E42: 40 | F42: ARCO PLYTA | G42: =Arco.plyta -> 19.1846902 | H42: =Wybr.system.przejsciowy*10+Oblicz.locznikow -> 40
B43: Płyta | C43: =QUANTUM!D51*QUANTUM!D52*QUANTUM!N38*620/1000000000 -> 15.8644422 | D43: =C43 -> 15.8644422 | E43: 80 | F43: ARCO SZKLO | G43: =Arco.szklo -> 31.893688 | H43: =Wybr.system.przejsciowy*20+Oblicz.locznikow -> 80
B44: Szkło | C44: =QUANTUM!D55*QUANTUM!D56*QUANTUM!M38*2800/1000000000 -> 28.57344 | D44: =C44 -> 28.57344 | E44: 41 | F44: ARCO PLYTA LACZ | G44: =Arco.plyta.lacz -> 19.8203862
B45: Aluminium | C45: =2*C42*QUANTUM!$D$59/1000+2*'Obliczenia-dolny'!$J$34*QUANTUM!$D$60/1000 -> 2.980248 | D45: =2*D42*QUANTUM!$D$59/1000+2*'Obliczenia-dolny'!$J$34*QUANTUM!$D$60/1000 -> 3.180048 | E45: 81 | F45: ARCO SZKLO LACZ | G45: =Arco.szklo.lacz -> 32.529384
B46: Okucia | C46: 0.34 | D46: =0.34 -> 0.34 | E46: 50 | F46: FALDA PLYTA | G46: =Falda.plyta -> 19.3844902
B47: Razem płyta | C47: =SUM(C43,$C$45,$C$46) -> 19.1846902 | D47: =SUM(D43,$D$45,$D$46) -> 19.3844902 | E47: 100 | F47: FALDA SZKLO | G47: =Falda.szklo -> 32.093488
B48: Razem szkło | C48: =SUM(C44,$C$45,$C$46) -> 31.893688 | D48: =SUM(D44,$D$45,$D$46) -> 32.093488 | E48: 51 | F48: FALDA PLYTA LACZ | G48: =Falda.plyta.lacz -> 20.0201862
B49: Łączniki | C49: =VLOOKUP(Wybrany.lacznik.przej,$E$30:$J$32,6,0)*Liczba.lacznikow*G17/1000 -> 0.635696 | D49: =C49 -> 0.635696 | E49: 101 | F49: FALDA SZKLO LACZ | G49: =Falda.szklo.lacz -> 32.729184
B50: Razem płyta | C50: =C47+$C$49 -> 19.8203862 | D50: =D47+$D$49 -> 20.0201862
B51: Razem szkło | C51: =C48+$C$49 -> 32.529384 | D51: =D48+$D$49 -> 32.729184

Sheet Opisy (hidden)
A1: Wybór języka | B1: 9 | E1: =Opisy!A52 -> chyba!
B2: Polski | E2: =Opisy!A53 -> Chybný "H" profil!
B3: English
B4: Русский
B5: Deutsch
B6: Français
B7: =Tabela1[[#Headers],[Українська]] -> Українська
B8: Lietuvos
B9: Slovenski
B10: Slovenský
C12: PL | D12: EN | E12: RU | F12: DE | G12: FR | H12: Українська | I12: LT | J12: SLO | K12: SK
C13: 1 | D13: 2 | E13: 3 | F13: 4 | G13: 5 | H13: 6 | I13: 7 | J13: 8 | K13: 9
A14: Tekst do wstawienia | B14: Nr wiersza | C14: PL | D14: EN | E14: RU | F14: DE | G14: FR | H14: Українська | I14: LT | J14: SLO | K14: SK
A15: =HLOOKUP($B$1,$C$13:$K$478,$B15,FALSE) -> Vyber profil | B15: 3 | C15: Wybierz system: | D15: Choose a system: | E15: Выберите тип системы: | F15: System auswählen: | G15: Choix système: | H15: Виберіть систему: | I15: Pasirinkite sistema: | J15: Izberite sistem: | K15: Vyber profil
A16: Linia ERGO | B16: 4 | C16: Linia ERGO | D16: ERGO product line | E16: Система ERGO | F16: Linie ERGO | G16: Ligne ERGO | H16: Лінія ERGO | I16: ERGO produktų linija | J16: Linija ERGO | K16: Linia ERGO
A17: Linia NOVO | B17: 5 | C17: Linia NOVO | D17: NOVO product line | E17: Система NOVO | F17: Linie NOVO | G17: Ligne NOVO | H17: Лінія NOVO | I17: NOVO produktų linija | J17: Linija NOVO | K17: Linia NOVO
A18: Rozmery otvoru | B18: 6 | C18: Wymiary otworu | D18: Recess dimensions | E18: Размеры проема | F18: Größe der Öffnung | G18: Dimensions façade | H18: Розмір отвору | I18: Skylės matmenis | J18: Dimenzija odprtine | K18: Rozmery otvoru
A19: <- MAX 2,74m | B19: 7 | C19: <- MAX 2,74m | D19: <- MAX 2,74m | E19: <- MAX 2,74 м | F19: <- MAX 2,74 m | G19: <- MAX 2,74m | H19: <- MAX 2,74м | I19: <- MAX 2,74m | J19: <- MAX 2,74m | K19: <- MAX 2,74m
A20: <- MIN 1,0m | B20: 8 | C20: <- MIN 1,0m | D20: <- MIN 1,0m | E20: <- MIN 1,0 м | F20: <- MIN 1,0 m | G20: <- MIN 1,0m | H20: <- MIN 1,0м | I20: <- MIN 1,0m | J20: <- MIN 1,0m | K20: <- MIN 1,0m
A21: <- OK | B21: 9 | C21: <- OK | D21: <- OK | E21: <- OK | F21: <- OK | G21: <- OK | H21: <- OK | I21: <- OK | J21: <- OK | K21: <- OK
A22: WO [mm] | B22: 10 | C22: WO [mm] | D22: Cabinet height [mm] | E22: Высота [мм] | F22: H [mm] | G22: WO [mm] | H22: ВО [мм] | I22: Skylės aukštis [mm] | J22: Višina omarice [mm] | K22: WO [mm]
A23: SO [mm] | B23: 11 | C23: SO [mm] | D23: Cabinet width [mm] | E23: Ширина [мм] | F23: B [mm] | G23: SO [mm] | H23: ШО [мм] | I23: Skylės plotis [mm] | J23: Širina omarice [mm] | K23: SO [mm]
A24: <- MAX 6,0m | B24: 12 | C24: <- MAX 6,0m | D24: <- MAX 6,0m | E24: <- MAX 6,0 м | F24: <- MAX 6,0 m | G24: <- MAX 6,0m | H24: <- MAX 6,0м | I24: <- MAX 6,0m | J24: <- MAX 6,0m | K24: <- MAX 6,0m
A25: Konfigurácia krídiel | B25: 13 | C25: Konfiguracja skrzydeł | D25: Door arrangement | E25: Конфигурация дверей | F25: Konfiguration der Flügel | G25: Configuration vantaux | H25: Конфігурація дверей | I25: Durų konfigūracija | J25: Konfiguracija Vrat | K25: Konfigurácia krídiel
A26: n (I. krídiel ) | B26: 14 | C26: n (l. skrzydeł) | D26: n (no. of doors) | E26: кол-во дверей | F26: n (Anzahl von Flügeln) | G26: n (nombre de vantaux) | H26: n (к-сть. дверей) | I26: n (durų skaičius ) | J26: n (št. vrat) | K26: n (I. krídiel )
A27: k (I. prekrytie ) | B27: 15 | C27: k (l. zakładek) | D27: k (no. of overlaps) | E27: кол-во перехлестов | F27: k (Anzahl von Überlappungen) | G27: k (nombre de recouvrements) | H27: k (к-сть. накладка) | I27: k (persidengimų skaičius) | J27: k (št. prekrivanj) | K27: k (I. prekrytie )
A28: z (šírka prekrytia) | B28: 16 | C28: z (szer. zakładki) | D28: z (width of overlap) | E28: ширина перехлеста | F28: z (Breite der Überlappung) | G28: z (largeur des recouvrements) | H28: z (ширина накладки) | I28: z (persidengimo plotis) | J28: z (širina prekrivanja) | K28: z (šírka prekrytia)
A29: Štetina | B29: 17 | C29: Szczotka | D29: brush seal | E29: Щетка | F29: Bürste | G29: Brosse | H29: Щітка | I29: šepetėlis | J29: Ščetka | K29: Štetina
A30: Pozor: | B30: 18 | C30: Uwaga: | D30: Attention: | E30: Внимание! | F30: Achtung: | G30: Remarque: | H30: Увага: | I30: Dėmesio : | J30: Opozorilo | K30: Pozor:
A31: Rozmery krídiel pre montáž mechanizmu soft closing: | B31: 19 | C31: Proporcje skrzydeł dla montażu mechanizmu samodociągu: | D31: Proportions of the doors, for mounting the soft closing mechanism: | E31: Пропорции дверей для монтажа механизма самодоката | F31: Proportionen der Flügel für Montage des Selbsteinzugs: | G31: Proportion vantail pour montage mécanisme soft-closing | H31: Пропозиція крил для монтажу механізму самодотягу | I31: Durų proporcijos mechanizmo montavimui : | J31: Dimenzijje vratnega krila | K31: Rozmery krídiel pre montáž mechanizmu soft closing:
A32: * - Hmotnosť krídla je vypočítana tak, aby splnila z DTD ( 620 kg / M3 ) alebo sklo ( 2800 kg / M3 ) bez škár | B32: 20 | C32: * - Waga skrzydła została wyliczona dla wypełnienia wykonanego z płyty wiórowej (620kg/m3) lub szkła zwykłego o grubości 4mm (2800kg/m3), bez łączeń. | D32: * - Weight was calculated for door made ​​of chipboard (620kg / m 3) or ordinary glass with a thickness of 4mm (2800kg / m 3), without connections. | E32: * - Вес двери просчитан для наполнения из плиты ДСП (620 кг/м3) или стекла (2800 кг/м3) без соеденительных профилей. | F32: * - Gewicht des Flügels wurde für Türen aus Pressspan (620 kg/m3) oder Glas mit einer Stärke von 4 mm (2800 kg/m3) ohne Verbindungen errechnet. | G32: * - Poids du vantail calculé pour remplissage avec panneaux agglomérés (620kg/m3) ou verre d'épaisseur 4mm (2800kg/m3), sans joints. | H32: * - Вага крила була розрахована для наповнення виконаного з ДСП (620кг/м3) або звичайного скла товщиною 4мм (2800кг/м3), без з'єднань. | I32: * -* - Svoris buvo apskaičiuotas durims pagamintoms iš medžio drožlių plokštės (620kg / m 3) arba paprasto stiklo 4mm storio (2800kg / m 3), be siūlių. | J32: * - Teža je izračunana za vrata narejena iz ivernih plošč ( 620kg / m3 ) ali navadnim steklom debeline 4mm ( 2800kg / m 3 ) , brez spojev. | K32: * - Hmotnosť krídla je vypočítana tak, aby splnila z DTD ( 620 kg / M3 ) alebo sklo ( 2800 kg / M3 ) bez škár
A33: Pozor! Nesprávny pomer šírky a výšky dverí. Odporúča sa znížiť počet krídiel. | B33: 21 | C33: Uwaga! Nie właściwa proporcja wysokości drzwi do szerokości. Zaleca się zmniejszyć liczbę skrzydeł. | D33: Attention! Wrong proportions between the door height and width. It is recommended to reduce the number of doors. | E33: Внимание! Неправильная пропорция высоты двери к ширине. Рекомендуется уменьшить количество дверей. | F33: Achtung! Das Höhe-Breite-Verhältnis der Türen stimmt nicht. Bitte ändern Sie die Anzahl der Flügel. | G33: Attention! Inadaptation de la proportion entre la haut. et la larg. du vantail. Il est recommandé de réduire le nombre de vantaux. | H33: Увага! Неправильна пропорція висоти до ширини дверей. Рекомендується зменшити кількість крил. | I33: Dėmesio! Klaidingos durų proporcijos tarp aukščio ir pločio. Rekomenduojama sumažinti durų sk. | J33: Pozor ! Napačna razmerja med višino vrat in širino . Je priporočljivo , da se zmanjša število vrat | K33: Pozor! Nesprávny pomer šírky a výšky dverí. Odporúča sa znížiť počet krídiel.
A34: Pomery sú v poriadku. | B34: 22 | C34: Proporcje są OK | D34: Proportions are OK | E34: Пропорции ОК | F34: Die Proportionen sind OK. | G34: Les proportions sont correctes | H34: Правильна пропорція | I34: Proporcijos yra tinkamos | J34: Dimenzije so OK | K34: Pomery sú v poriadku.
A35: "H" profily | B35: 23 | C35: Łączniki | D35: Connections | E35: Соединители | F35: Verbindung | G35: Joints | H35: З'єднання | I35: Jungtys | J35: Spoji | K35: "H" profily
A36: Výpočet kombinovaných výplní. | B36: 24 | C36: Obliczenia wysokości wypełnień łączonych | D36: Calculation of heght with combined infills | E36: Расчет высоты соединяемых наполнений | F36: Berechnung der Höhe der verbundenen Füllungen | G36: Calcul de la hauteur de remplissage des joints | H36: Розрахунок висоти використаних наповнень | I36: Užpildo jungties aukščio apskaičiavimas | J36: Izračun višine s kombiniranimi polnil | K36: Výpočet kombinovaných výplní.
A37: Vyber "H" profil | B37: 25 | C37: Wybierz łącznik: | D37: Choose a connection: | E37: Выбери соединитель: | F37: Verbindung auswählen: | G37: Choix des joints | H37: Виберіть з'єднання. | I37: Pasirinkite jungti: | J37: Izberite spoj | K37: Vyber "H" profil
A38: Rovnomerné rozloženie "H" profilov | B38: 26 | C38: Równomierne rozłożenie łączników. | D38: Joints split door infills to equal panels | E38: Равномерное распределение соединителей. | F38: Gleichmäßige Verteilung der Verbinder | G38: Disposition uniforme des joints | H38: Рівномірне розподілення з'єднань. | I38: Tolygus jungčių pasiskirstymas | J38: Enakomerno razdeli spoje | K38: Rovnomerné rozloženie "H" profilov
A39: Jedna hrúbka výplne | B39: 27 | C39: Jedna grubość wypełnienia | D39: The same thickness of infills | E39: Одна ширина наполнения | F39: Gleiche Stärke der Füllung | G39: L'épaisseur du remplissage | H39: Одна товщина наповнення | I39: Tas pats užpildo storis | J39: Enaka debelina polnil | K39: Jedna hrúbka výplne
A40: i ( počet profilov "H" ) | B40: 28 | C40: i (ilość łączników) | D40: i (number of connections) | E40: кол-во соединителей | F40: und (Anzahl der Verbindungen) | G40: i (nombre de joints) | H40: і (кількість з'єднань) | I40: i ( Jungčių kiekis) | J40: i ( število spojev) | K40: i ( počet profilov "H" )
A41: Počet dielov | B41: 29 | C41: Liczba elementów składowych | D41: The number of elements | E41: Кол-во деталей | F41: Anzahl der Elemente | G41: Nombre d'éléments | H41: Кількість деталей | I41: Elementų skaičius | J41: Število elementov | K41: Počet dielov
A42: Diely z DTD | B42: 30 | C42: Elementy z płyty | D42: Chipboard parts | E42: Элементы из плиты | F42: Elemente aus Pressspan | G42: Eléments en aggloméré | H42: Елементи з плити | I42: Elementai pagaminti iš plokštės | J42: Deli iverala | K42: Diely z DTD
A43: Výška DTD bez profilov "H" | B43: 31 | C43: Wys. wyp. z płyty bez łączników | D43: Board height without joiners | E43: Выс. нап. из плиты без соед. | F43: Höhe der Spanplatten ohne Verbindung | G43: H remp. en aggloméré sans joints | H43: Вис. нап. з плити без з'єднань | I43: Plokštės elementų aukštis be jungčių | J43: Višina polnila brez spoja | K43: Výška DTD bez profilov "H"
A44: A (výška dielov z DTD) | B44: 32 | C44: A (wys. elementów z płyty) | D44: A (single board panel height) | E44: А (выс. элементов из плиты) | F44: A (Höhe der Spanplatten) | G44: A (haut. éléments en aggloméré) | H44: A (висота елементів з плити) | I44: A (plokštės elementų aukštis) | J44: A ( višina polnila) | K44: A (výška dielov z DTD)
A45: B (výška dielov z DTD) | B45: 33 | C45: B (wys. elementów z płyty) | D45: B (single board panel height) | E45: B (выс. элементов из плиты) | F45: B (Höhe der Spanplatten) | G45: B (haut. éléments en aggloméré) | H45: B (висота елементів з плити) | I45: B (plokštės elementų aukštis) | J45: B ( višina polnila) | K45: B (výška dielov z DTD)
A46: Diely zo skla 4mm | B46: 34 | C46: Elementy ze szkła 4mm | D46: Glass elements 4mm | E46: Элементы из стекла 4 мм | F46: Glaselemente 4mm | G46: Eléments en verre 4mm | H46: Елементи з скла 4мм | I46: Stiklo elementai 4mm | J46: Stekleni element 4 mm | K46: Diely zo skla 4mm
A47: Výška skla bez profilov "H" | B47: 35 | C47: Wys. wyp. 4mm bez łączników | D47: Infill height 4mm without connections | E47: Выс. нап. 4 мм без соед. | F47: Höhe der Füllung ohne Verbindung 4mm | G47: Haut rempl. 4 mm sans joints | H47: Вис. наповнення 4мм без з'єднань | I47: Užpildo aukštis 4mm be jungcių | J47: Višina polnila 4mm brez spoja | K47: Výška skla bez profilov "H"
A48: C (Výška skla 4mm ) | B48: 36 | C48: C (wys. elementów ze szkła 4mm) | D48: C (single glass 4mm panel height) | E48: C (выс. элементов из стекла 4 мм) | F48: C (Höhe der Glaselemente 4mm) | G48: C (hauteur éléments en verre 4mm) | H48: C (висота елементів із скла 4мм) | I48: C (stiklo elementų aukštis 4mm) | J48: C (Višina steklenega elementa 4mm) | K48: C (Výška skla 4mm )
A49: ks | B49: 37 | C49: szt. | D49: pcs. | E49: шт. | F49: Stk. | G49: ex. | H49: шт. | I49: vnt. | J49: Kos | K49: ks
A50: mm | B50: 38 | C50: mm | D50: mm | E50: мм | F50: mm | G50: mm | H50: мм | I50: mm | J50: mm | K50: mm
A51: mm* | B51: 39 | C51: mm* | D51: mm* | E51: мм* | F51: mm* | G51: mm* | H51: мм* | I51: mm* | J51: mm* | K51: mm*
A52: chyba! | B52: 40 | C52: Błąd! | D52: Error! | E52: Ошибка! | F52: Fehler! | G52: Erreur! | H52: Помилка! | I52: Klaida! | J52: Napaka! | K52: chyba!
A53: Chybný "H" profil! | B53: 41 | C53: Niewłaściwy łącznik! | D53: Incorrect connector! | E53: Неверный соединитель! | F53: Falsche Verbindung! | G53: Joint incorrect ! | H53: Не правильне з'єднання! | I53: Netinkamas jungtis! | J53: Nepravilni spoj | K53: Chybný "H" profil!
A54: * - Uwaga! W systemie 18/4, przy łączeniu wypełnień o różnych grubościach (płyta, szkło), został założony luz dla szkła wynoszący 0,5mm na każdy element. W konfiguracji, gdzie występuje tylko jedno wypełnienie szklane, należy od jego wysokości odjąć 1mm, aby zwiększyć luz. | B54: 42 | C54: * - Uwaga! W systemie 18/4, przy łączeniu wypełnień o różnych grubościach (płyta, szkło), został założony luz dla szkła wynoszący 0,5mm na każdy element. W konfiguracji, gdzie występuje tylko jedno wypełnienie szklane, należy od jego wysokości odjąć 1mm, aby zwiększyć luz. | D54: Attention! In system 18/4, when combining different filling thickness (board, glass), there is an assumed gap for glass 0,5mm on every element. If there is only 1 glass infill, You should deduct 1mm, to make the gap bigger. | E54: Внимание! Система 18/4 запроектирована таким образом, что, при соединении наполнений разной толщины (плита, стекло), остается люфт для стекла в 0,5 мм на каждом элементе. В конфигурации, где имеется только стеклянное наполнение, необходимо отнять от его высоты 1 мм, чтобы увеличить люфт. | F54: * - Achtung! Im System 18/4 bei Verbindung von Füllungen unterschiedlicher Stärken (Spanplatte, Glas) wurde eine Lücke für Glas von 0,5 mm für jedes Element angenommen. Bei der Konfiguration, in der nur eine Glasfüllung vorliegt, muss von ihrer Höhe 1 mm abgezogen werden, um die Lücke zu vergrößern. | G54: * - Attention! Pour le systeme 18/4 en additionant des remplissages de différentes épaisseurs (aggloméré, verre) une marge a été créé pour le montant en verre de 0,5 mm sur chaque élément. Dans une configuration où il n'y a qu'un seul remplissage de verre, soustraite 1 mm de sa hauteur pour augmenter l'espace | H54: * - Увага! В системі 18/4, при з'єднанні наповнень різної товщини (плита, скло), врахований зазор для скла в розмірі 0,5мм на кожен елемент. В конфігурації, де є тільки скляне наповнення, потрібно від його висоти відняти 1 мм, щоб збільшити зазор. | I54: * - Dėmesio! Sistemoje 18/4, derinant skirtingus užpildų storius (plokštė, stiklas), yra kiekvienam stiklų elementui padarytas 0,5 mm laisvumas . Jei yra tik 1 stiklinis užpildas, nuo jo aukščio reikia atskaičiuoti 1mm, kad padidinti laisvumą. | J54: * - Pozor ! V sistemu 18/4 , ko združuje različne debeline polnil ( iveral , steklo) , obstaja možnost, reža za steklo 0,5 mm za vsak element. Če obstaja samo 1 stekleno polnilo , boste morali odšteti 1mm , da je razlika večja . | K54: * - Uwaga! W systemie 18/4, przy łączeniu wypełnień o różnych grubościach (płyta, szkło), został założony luz dla szkła wynoszący 0,5mm na każdy element. W konfiguracji, gdzie występuje tylko jedno wypełnienie szklane, należy od jego wysokości odjąć 1mm, aby zwiększyć luz.
A55: Šírka dverí | B55: 43 | C55: Szerokość drzwi | D55: Door width | E55: Ширина дверей | F55: Breite der Tür | G55: Largeur vantail | H55: Ширина дверей | I55: Durų plotis | J55: Širina vrat | K55: Šírka dverí
A56: Výška dverí | B56: 44 | C56: Wysokość drzwi | D56: Door height | E56: Высота дверей | F56: Höhe der Tür | G56: Hauteur vantail | H56: Висота дверей | I56: Durų aukštis | J56: Višina vrat | K56: Výška dverí
A57: Výplň 18mm | B57: 45 | C57: Szer. wyp. 18mm | D57: Board 18mm width | E57: Шир. наполнения 18 мм | F57: Breite der Füllung 18 mm | G57: Largeur remplissage 18mm | H57: Ширина наповнення - 18мм | I57: lent. pl. 18mm | J57: Širina polnila 18 mm | K57: Výplň 18mm
A58: Výplň 16mm | B58: 46 | C58: Szer. wyp. 16mm | D58: Board 16mm width | E58: Шир. наполнения 16 мм | F58: Breite der Füllung 16 mm | G58: Largeur remplissage 16mm | H58: Ширина наповнення - 16мм | I58: lent. pl 16mm | J58: Širina polnila 16 mm | K58: Výplň 16mm
A59: Výplň 12mm | B59: 47 | C59: Szer. wyp. 12mm | D59: Board 12mm width | E59: Шир. наполнения 12 мм | F59: Breite der Füllung 12 mm | G59: Largeur remplissage 12mm | H59: Ширина наповнення - 12мм | I59: lent. pl 12mm | J59: Širina polnila 12 mm | K59: Výplň 12mm
A60: Výplň 10mm | B60: 48 | C60: Szer. wyp. 10mm | D60: Board 10mm width | E60: Шир. наполнения 10 мм | F60: Breite der Füllung 10 mm | G60: Largeur remplissage 10mm | H60: Ширина наповнення - 10мм | I60: lent. pl 10mm | J60: Širina polnila 10 mm | K60: Výplň 10mm
A61: Výplň 4mm | B61: 49 | C61: Szer. wyp. 4mm | D61: Glass 4mm width | E61: Шир. наполнения 4 мм | F61: Breite der Füllung 4 mm | G61: Largeur remplissage 4mm | H61: Ширина наповнення - 4мм | I61: lent. pl 4mm | J61: Širina polnila 4 mm | K61: Výplň 4mm
A62: Výplň 18mm | B62: 50 | C62: Wys. wyp. 18mm | D62: Board 18mm height | E62: Выс. наполнения 18 мм | F62: Höhe der Füllung 18 mm | G62: Hauteur remplissage 18mm | H62: Висота наповнення - 18мм | I62: lent. pl 18mm | J62: Višina polnila 18 mm | K62: Výplň 18mm
A63: Výplň 16mm | B63: 51 | C63: Wys. wyp. 16mm | D63: Board 16mm height | E63: Выс. наполнения 16 мм | F63: Höhe der Füllung 16 mm | G63: Hauteur remplissage 16mm | H63: Висота наповнення - 16мм | I63: lent. pl 16mm | J63: Višina polnila 16 mm | K63: Výplň 16mm
A64: Výplň 12mm | B64: 52 | C64: Wys. wyp. 12mm | D64: Board 12mm height | E64: Выс. наполнения 12 мм | F64: Höhe der Füllung 12 mm | G64: Hauteur remplissage 12mm | H64: Висота наповнення - 12мм | I64: lent. pl 12mm | J64: Višina polnila 12 mm | K64: Výplň 12mm
A65: Výplň 10mm | B65: 53 | C65: Wys. wyp. 10mm | D65: Board 10mm height | E65: Выс. наполнения 10 мм | F65: Höhe der Füllung 10 mm | G65: Hauteur remplissage 10mm | H65: Висота наповнення - 10мм | I65: lent. pl 10mm | J65: Višina polnila 10 mm | K65: Výplň 10mm
A66: Výplň 4mm | B66: 54 | C66: Wys. wyp. 4mm | D66: Glass 4mm height | E66: Выс. наполнения 4 мм | F66: Höhe der Füllung 4 mm | G66: Hauteur remplissage 4mm | H66: Висота наповнення - 4мм | I66: lent. pl 4mm | J66: Višina polnila 4 mm | K66: Výplň 4mm
A67: Dĺžka madla | B67: 55 | C67: Długość rączki | D67: Handle length | E67: Длина ручки | F67: Länge des Griffs | G67: Longueur poignee | H67: Довжина ручки | I67: Rankenos ilgis | J67: Dolžina ročaja | K67: Dĺžka madla
A68: Dĺžka spojovacieho prof. | B68: 56 | C68: Dł. listew poz. | D68: Rail length | E68: Длина поперечных профилей | F68: Länge der Leiste | G68: Longueur du rail | H68: Довжина горизон. проф. | I68: Likusių plokščių ilgis | J68: Dolžina letve | K68: Dĺžka spojovacieho prof.
A69: Váha krídla s výplňou DTD | B69: 57 | C69: Waga skrzydła z wypełnieniem z płyty | D69: Door weight with chipboard infill | E69: Вес двери с наполнением из плиты ДСП | F69: Gewicht des Flügels mit Pressspanfüllung | G69: Poids de la porte avec remplissage panneau | H69: Вага дверей з наповненням із плити | I69: Durų svoris su užpildu iš plokštės | J69: Teža vratnega krila s polnilom | K69: Váha krídla s výplňou DTD
A70: Váha krídla s výplňou sklo | B70: 58 | C70: Waga skrzydła z wypełnieniem ze szkła | D70: Door weight with glass infill | E70: Вес двери с наполнением из стекла | F70: Gewicht des Flügels mit Glasfüllung | G70: Poids de la porte avec remplissage verre | H70: Вага дверей з наповненням із скла | I70: Durų svoris su užpildu iš stiklo | J70: Teža vratnega krila s steklenim polnilom | K70: Váha krídla s výplňou sklo
A71: kg | B71: 59 | C71: kg | D71: kg | E71: кг | F71: kg | G71: kg | H71: кг | I71: kg | J71: kg | K71: kg
A72: Zvýšiť počet prekrytí | B72: 60 | C72: Zwiększ ilość zakładek | D72: Increase the number of ocerlaps | E72: Необходимо увеличить кол-во перехлестов | F72: Die Anzahl von Überlappungen soll größer sein | G72: Augmenter nbre recouvrements | H72: Збільшити кількість накладок | I72: Padidinti persidengimų skaičių | J72: Povečanje števila prekrivanja | K72: Zvýšiť počet prekrytí
A73: Znížiť počet prekrytí | B73: 61 | C73: Zmniejsz ilość zakładek | D73: Reduce the number of overlaps | E73: Необходимо уменьшить кол-во перехлестов | F73: Die Anzahl von Überlappungen soll kleiner sein | G73: Modifier nbre recouvrements | H73: Зменшити кількість накладок | I73: Sumažinti persidengimų skaičių | J73: Zmanjšanje števila prekrivanj | K73: Znížiť počet prekrytí
A74: N/D | B74: 62 | C74: N/D | D74: N/A | E74: Н/Д | F74: n. z. | G74: N/D | H74: Н/Д | I74: N/D | J74: N/D | K74: N/D
A75: ------RÁMOWE 18mm-------------- | B75: 63 | C75: ------RAMOWE 18mm-------------- | D75: -------FRAME 18mm-------------- | E75: -----------Pама 18мм-------------- | F75: ----Alu-Rahmen 18 mm----------- | G75: --------Cadre 18mm-------------- | H75: ---------Pама 18мм-------------- | I75: ------RĖMAS 18mm-------------- | J75: ----Alu-okvir 18 mm----------- | K75: ------RÁMOWE 18mm--------------
A76: ------RÁMOWE 10mm-------------- | B76: 64 | C76: ------RAMOWE 10mm-------------- | D76: -------FRAME 10mm-------------- | E76: -----------Pама 10мм-------------- | F76: ----Alu-Rahmen 10 mm----------- | G76: --------Cadre 10mm-------------- | H76: ---------Pама 10мм-------------- | I76: ------RĖMAS 10mm-------------- | J76: ----Alu-Okvir 10 mm----------- | K76: ------RÁMOWE 10mm--------------
A77: Sprawdź ilość zakładek! W większości przypadków, różnica pomiędzy ilością skrzydeł a ilością zakładek wynosi 1. Wyjątkiem może być zabudowa z czteroma skrzydłami w układzie symetrycznym, gdzie ta różnica wnosi 2 (patrz katalog). | B77: 65 | C77: Sprawdź ilość zakładek! W większości przypadków, różnica pomiędzy ilością skrzydeł a ilością zakładek wynosi 1. Wyjątkiem może być zabudowa z czteroma skrzydłami w układzie symetrycznym, gdzie ta różnica wnosi 2 (patrz katalog). | D77: Check the number of overlaps! In the most cases, the difference between the amount of wings and overlaps is one. The exception can be a development with four wings in the symmetric system , where the difference is 2 ( check the catalogue). | E77: Проверь количество перехлёстов! В большинстве случаев разница между количеством дверей и количеством перехлёстов равно 1. Исключением является конфигурация с четырьмя дверями в ассиметричном варианте исполнения, где разница равна 2 (смотрите каталог!) | F77: Prüfen Sie die Anzahl der Überlappungen! In den meisten Fällen beträgt die Differenz zwischen der Anzahl der Flügel und der Anzahl der Überlappungen 1. Eine Ausnahme kann das vierflügelige Schiebetürsystem mit vier Flügeln in symmetrischer Verteilung bilden, wo diese Differenz 2 beträgt (siehe Katalog). | G77: Vérifier le nombre de recouvrements ! Dans la plupart des cas, la différence entre le nombre de recouvrements et de vantaux est de 1. Une exception peut – être le montage de 4 vantaux symétriques, lorsque cette différence est de 2 (voir catalogue). | H77: У більшості випадків, різниця між кількістю крил і кількість вкладок дорівнює 1. Винятком може бути будова з чотирма крилами в симетричному розташуванні, де різниця дорівнює 2 (див. каталог). | I77: Patikrinkite persidengimų skaičių! Daugeliu atvejų, skirtumas tarp durų sk. ir persidengimų yra 1. Išimčiu gali būti simetriškoje sistemoje imontuojant 4 duris. Skirtumas yra 2 (žiurėkite katalogą) | J77: Preverite število prekrivanja ! V večini primerov je razlika med številom polnil in števila prekrivanj je 1. Izjema lahko tvorita s štirimi krili v simetričnem izgledu , Štiri plošče Sistem drsnih vrat , kjer je ta razlika 2 ( glej katalog ) . | K77: Sprawdź ilość zakładek! W większości przypadków, różnica pomiędzy ilością skrzydeł a ilością zakładek wynosi 1. Wyjątkiem może być zabudowa z czteroma skrzydłami w układzie symetrycznym, gdzie ta różnica wnosi 2 (patrz katalog).
A78: Váha krídla s výplňou DTD 18mm | B78: 66 | C78: Waga skrzydła z wypełnieniem z płyty 18mm | D78: Door weight with chipboard infill - 18mm | E78: Вес двери с наполнением из плиты ДСП - 18мм | F78: Gewicht des Flügels mit Pressspanfüllung - 18mm | G78: Poids de la porte avec remplissage panneau - 18mm | H78: Вага дверей з наповненням із плити - 18мм | I78: Durų svoris su užpildu iš plokštės - 18mm | J78: Teža vratnega krila s polnilom Iveral 18 mm | K78: Váha krídla s výplňou DTD 18mm
A79: =HLOOKUP($B$1,$C$13:$K$478,$B79,FALSE) -> Váha krídla s výplňou sklo 16mm | B79: 67 | C79: Waga skrzydła z wypełnieniem z płyty 16mm | D79: Door weight with chipboard infill - 16mm | E79: Вес двери с наполнением из плиты ДСП - 16мм | F79: Gewicht des Flügels mit Pressspanfüllung - 16mm | G79: Poids de la porte avec remplissage panneau - 16mm | H79: Вага дверей з наповненням із плити - 16мм | I79: Durų svoris su užpildu iš plokštės - 16mm | J79: Teža vratnega krila s polnilom Iveral 16 mm | K79: Váha krídla s výplňou sklo 16mm
A80: <- MAX 3,0m | B80: 68 | C80: <- MAX 3,0m | D80: <- MAX 3,0m | E80: <- MAX 3,0 м | F80: <- MAX 3,0 m | G80: <- MAX 3,0m | H80: <- MAX 3,0м | I80: <- MAX 3,0m | J80: <- MAX 3,0m | K80: <- MAX 3,0m
A81: Rozmery podľa: | B81: 69 | C81: Wymiary dla: | D81: Dimensions for: | E81: Размер для: | F81: Abmessungen für: | H81: Виміри для: | J81: Dimenzije za: | K81: Rozmery podľa:
A82: dutiny | B82: 70 | C82: Wnęki | D82: niches | E82: Ниши | F82: Nische | H82: Ніші | J82: Odprtino | K82: dutiny
A83: Korpusu skrine | B83: 71 | C83: Korpusu szafy | D83: closet body | E83: Корпуса шкафа | F83: Schrankkorpus | H83: Корпусу шафи | J83: Korpus ormare | K83: Korpusu skrine
A84: Výška: | B84: 72 | C84: Wysokość: | D84: Height: | E84: Высота: | F84: Höhe: | H84: Висота: | J84: Višina: | K84: Výška:
A85: Šírka: | B85: 73 | C85: Szerokość: | D85: Width: | E85: Ширина: | F85: Breite: | H85: Ширина: | J85: Širina: | K85: Šírka:
A86: Hĺbka: | B86: 74 | C86: Głębokość: | D86: Depth: | E86: Глубина: | F86: Tiefe: | H86: Глибина: | J86: Globina: | K86: Hĺbka:
A87: Maximálne 3000mm | B87: 75 | C87: Maksimum 3000mm | D87: Maximum 3000mm | E87: Максимум 3000мм | F87: Maximum 3.000 mm | H87: Максимум 3000 мм | J87: Maksimum 3000mm | K87: Maximálne 3000mm
A88: Maximálne 4050mm | B88: 76 | C88: Maksimum 4050mm | D88: Maximum 4050mm | E88: Максимум 4050 мм | F88: Maximum 4.050 mm | H88: Максимум 4050 мм | J88: Maksimum 4050mm | K88: Maximálne 4050mm
A89: Hrúbka DTD na korpus Gp : | B89: 77 | C89: Grubość płyty na korpus Gp: | D89: Board thickness for body Gp: | E89: Толщина плиты для корпуса ТК: | F89: Korpusplattenstärke Gp: | H89: Товщина плити для корпусу Gp: | J89: Deblina plošče za korpus Gp: | K89: Hrúbka DTD na korpus Gp :
A90: Výška sokla Hc : | B90: 78 | C90: Wysokość cokołu Hc : | D90: Cabinet plinth Hc: | E90: Высота цоколя ВЦ: | F90: Sockelhöhe Hc: | H90: Висота цоколя Hc: | J90: višina podnožja Hc : | K90: Výška sokla Hc :
A91: Hrúbka DTD dverí Gd: | B91: 79 | C91: Grubość płyty drzwi Gd: | D91: Board thickness doors Gd: | E91: Толщина плиты на двери ТК: | F91: Türplattenstärke Gd: | H91: Товщина плити для дверей Gd: | J91: Debelina plošče za vrata Gd: | K91: Hrúbka DTD dverí Gd:
A92: Šírka prekritia Z: | B92: 80 | C92: Szerokość zakładki Z: | D92: Width of overlap Z: | E92: Ширина закладки З: | F92: Breite der Überlappung Z: | H92: Ширина закладки Z: | J92: Širina prekrivanja Z: | K92: Šírka prekritia Z:
A93: mm (minimum 16 mm) | B93: 81 | C93: mm (minimum 16 mm) | D93: mm (minimum 16 mm) | E93: мм (минимум 16 мм) | F93: mm (mindestens 16 mm) | H93: мм (мінімум 16 мм) | J93: mm (minimum 16 mm) | K93: mm (minimum 16 mm)
A94: mm (minimum 50 mm) | B94: 82 | C94: mm (minimum 50 mm) | D94: mm (minimum 50 mm) | E94: мм (минимум 50 мм) | F94: mm (mindestens 50 mm) | H94: мм (мінімум 50 мм) | J94: mm (minimum 50 mm) | K94: mm (minimum 50 mm)
A95: mm (16 - 22 mm) | B95: 83 | C95: mm (16 - 22 mm) | D95: mm (16 - 22 mm) | E95: мм (16-22 мм) | F95: mm (16 - 22 mm) | H95: мм (16-22 мм) | J95: mm (16 - 22 mm) | K95: mm (16 - 22 mm)
A96: mm (minimum 20 mm) | B96: 84 | C96: mm (minimum 20 mm) | D96: mm (minimum 20 mm) | E96: мм (минимум 20мм) | F96: mm (mindestens 20 mm) | H96: мм (мінімум 20 мм) | J96: mm (minimum 20 mm) | K96: mm (minimum 20 mm)
A97: <--Zvýšiť šírku prekrytia | B97: 85 | C97: <--Zwiększ szerokość zakładki | D97: <-- increase the overlap width | E97: <-- Увеличь ширину закладки | F97: <- Die Breite der Überlappung soll größer sein | H97: Збільшити ширину закладки | J97: <--povečaj širino prekrivanja | K97: <--Zvýšiť šírku prekrytia
A98: Rozmery skrine - naložené dvere | B98: 86 | C98: Wymiary szafy - drzwi nakładane | D98: Closet dimensions - applied door | E98: Размеры шкафа - накладные двери | F98: Schrankabmessungen - aufschlagende Tür | H98: Розмір шафи - накладні двері | J98: Dimenzije omare - vrata | K98: Rozmery skrine - naložené dvere
A99: Korpus: | B99: 87 | C99: Korpus: | D99: Body: | E99: Корпус: | F99: Korpus: | H99: Корпус: | J99: Korpus: | K99: Korpus:
A100: Výška Ws: | B100: 88 | C100: Wysokość Ws: | D100: Height Ws: | E100: Высота ВШ: | F100: Höhe Ws: | H100: Висота Ws: | J100: Višina Ws: | K100: Výška Ws:
A101: Šírka Ss: | B101: 89 | C101: Szerokość Ss: | D101: Width Ss: | E101: Ширина ШШ: | F101: Breite Ss: | H101: Ширина Ss: | J101: Širina Ss: | K101: Šírka Ss:
A102: Hĺbka Gs: | B102: 90 | C102: Głębokość Gs: | D102: Depth Gs: | E102: Глубина ГШ: | F102: Tiefe Gs: | H102: Глибина Gs: | J102: Globina Gs: | K102: Hĺbka Gs:
A103: Vnútro korpusu: | B103: 91 | C103: Wnętrze korpusu: | D103: Inside of body: | E103: Внутренние размеры корпуса: | F103: Korpusinnenabmessungen: | H103: Внутрішні розміри корпусу: | J103: Notranjost korpusa: | K103: Vnútro korpusu:
A104: Výška Wu: | B104: 92 | C104: Wysokość Wu: | D104: Height Wu: | E104: Высота ВВ: | F104: Höhe Wu: | H104: Висота Wu: | J104: Višina Wu: | K104: Výška Wu:
A105: Šírka Sw: | B105: 93 | C105: Szerokość Sw: | D105: Width Sw: | E105: Ширина ВШ: | F105: Breite Sw: | H105: Ширина Sw: | J105: Širina Sw: | K105: Šírka Sw:
A106: Hĺbka Gu: | B106: 94 | C106: Głębokość Gu: | D106: Depth Gu: | E106: Глубина ВГ: | F106: Tiefe Gu: | H106: Глибина Gu: | J106: Globina Gu: | K106: Hĺbka Gu:
A107: Panel horný a spodný | B107: 95 | C107: Wieniec górny i dolny: | D107: Top and bottom plinth: | E107: Торец верхний и нижний: | F107: Obere und untere Schrankkante: | H107: Торець верхній і нижній: | J107: Venec zgornji in spodnji: | K107: Panel horný a spodný
A108: Rozmer sokla: | B108: 96 | C108: Wymiary cokołu: | D108: Plinth dimensions: | E108: Размеры цоколя: | F108: Sockelabmessungen: | H108: Розмір цоколя: | J108: Veličina sokle: | K108: Rozmer sokla:
A109: Ľavý bok: | B109: 97 | C109: Bok lewy: | D109: Left side: | E109: Левая сторона: | F109: Linke Seite: | H109: Ліва сторона: | J109: Bok levi: | K109: Ľavý bok:
A110: Pravý bok: | B110: 98 | C110: Bok prawy: | D110: Right side: | E110: Правая сторона: | F110: Rechte Seite: | H110: Права сторона: | J110: Bok desni: | K110: Pravý bok:
A111: Zvyslé delenie: | B111: 99 | C111: Przegrody pionowe: | D111: Vertical partition: | E111: Вертикальные перегородки: | F111: Senkrechte Trennungen: | H111: Вертикальні перегородки: | J111: Vertikalne pregrade: | K111: Zvyslé delenie:
A112: Rozmery dverí: | B112: 100 | C112: Wymiary drzwi: | D112: Door dimensions: | E112: Размеры дверей: | F112: Türabmessungen: | H112: Виміри дверей: | J112: Dimenzije vrat: | K112: Rozmery dverí:
A113: Rozmery skrine - vložené dvere | B113: 101 | C113: Wymiary szafy - drzwi wpuszczane | D113: Closet dimensions - inset doors | E113: Размеры шкафа - внутренние двери | F113: Schrankabmessungen - Innentür | H113: Виміри шафи - внутрішні двері | J113: Dimenzije ormare - utopljena vrata | K113: Rozmery skrine - vložené dvere
A114: Výška Wd: | B114: 102 | C114: Wysokość Wd: | D114: Height Wd: | E114: Высота ВД: | F114: Höhe Wd: | H114: Висота Wd: | J114: VišinaWd: | K114: Výška Wd:
A115: Šírka Sd: | B115: 103 | C115: Szerokość Sd: | D115: Width Sd: | E115: Ширина ШД: | F115: Breite Sd: | H115: Ширина Sd: | J115: Širina Sd: | K115: Šírka Sd:
A116: Hĺbka Gd: | B116: 104 | C116: Grubość Gd: | D116: Depth Gd: | E116: Глубина ГД: | F116: Stärke Gd: | H116: Шлибина Gd: | J116: Debelina Gd: | K116: Hĺbka Gd:
A117: Poznámky: | B117: 105 | C117: Notatki: | D117: Notes: | E117: Примечания: | F117: Notizen: | H117: Нотатки: | J117: Beležka: | K117: Poznámky:
A118: Hrúbka: | B118: 106 | C118: Grubość: | D118: Thickness | E118: Толщина: | F118: Stärke: | H118: Товщина: | J118: Debelina: | K118: Hrúbka:
A119: Možnosti montáže: | B119: 107 | C119: Opcje montażu: | D119: Mounting options: | E119: Способы монтажа: | F119: Montageoptionen: | H119: Спосіб монтажу: | J119: Opcije montaže: | K119: Možnosti montáže:
A120: Priama montáž na strop | B120: 108 | C120: Bezpośredni montaż do sufitu | D120: Mounted directly to the ceiling | E120: Монтаж непосредственно к потолку | F120: Montage direkt an die Decke | H120: Монтаж безпосередньо до стелі | J120: Direktna montaža na strop | K120: Priama montáž na strop
A121: Montáž na stenu - horné uchytenie | B121: 109 | C121: Montaż do sufitu - uchwyt górny | D121: Ceiling mounted - top mount | E121: Монтаж к потолку - профиль верхний | F121: Montage an die Decke - Deckenbefestigung | H121: Монтаж до стелі - верхній профіль | J121: Montaža za strop - zgornji nosilac | K121: Montáž na stenu - horné uchytenie
A122: Montáž do steny - bočné uchytenie | B122: 110 | C122: Montaż do ściany - uchwyt boczny | D122: Wall mounted - side mount | E122: Монтаж к стене - профиль боковой | F122: Montage an die Wand - Wandbefestigung | H122: Монтаж до стіни - боковий профіль | J122: Montaža za strop - stranski nosilac | K122: Montáž do steny - bočné uchytenie
A123: Dostupné hrúbky výplní: | B123: 111 | C123: Dostępne grubości wypełnienia: | D123: Available filling thicknesses: | E123: Доступная толщина наполнения | F123: Verfügbare Füllungsstärken: | H123: Доступна товщина наповнення: | J123: Možnosti debeline polnil: | K123: Dostupné hrúbky výplní:
A124: Rozmery otvoru: | B124: 112 | C124: Wymiary otworu: | D124: Opening dimensions: | E124: Размеры проема: | F124: Öffnungsabmessungen: | H124: Розмір отвору: | J124: Dimenzija odprtine: | K124: Rozmery otvoru:
A125: Výška WO: | B125: 113 | C125: Wysokość WO: | D125: Height WO: | E125: Высота проема ВП: | F125: Höhe WO: | H125: Висота WO: | J125: Višina WO: | K125: Výška WO:
A126: Šírka SO: | B126: 114 | C126: Szerokość SO: | D126: Width SO: | E126: Ширина проема: ШП: | F126: Breite SO: | H126: Ширина SO: | J126: Širina SO: | K126: Šírka SO:
A127: <----- Pre skryté vedenie Xmin = 46mm | B127: 115 | C127: <----- Dla ukrytego prowadnika Xmin = 46mm | D127: <----- For hidden | E127: <--- для скрытого проводника Хмин.=46мм | F127: <----- Für das versteckte Führungsstück Xmin = 46 mm | H127: <---- Для прихованої направляющої Хмин.=46мм | J127: <----- za skrita kolesa Xmin = 46mm | K127: <----- Pre skryté vedenie Xmin = 46mm
A128: Výber montáže | B128: 116 | C128: Wybór zabudowy: | D128: Type of | E128: Выбор установки: | F128: Wahl des Aufbaus: | H128: Спосіб монтажу: | J128: Izaberi vrsto vgradnje: | K128: Výber montáže
A129: Varianta A | B129: 117 | C129: Wariant A | D129: Type A | E129: Вариант А | F129: Variante A | H129: Варіант А | J129: Varijanta A | K129: Varianta A
A130: Varianta B | B130: 118 | C130: Wariant B | D130: Type B | E130: Вариант Б | F130: Variante B | H130: Варіант Б | J130: Varijanta B | K130: Varianta B
A131: Dĺžka koľajnice | B131: 119 | C131: Długość toru | D131: Track lenght | E131: Длина направляющего профиля | F131: Länge der Laufschiene | H131: Довжина направляющого профілю | J131: Dolžina profila | K131: Dĺžka koľajnice
A132: Výpočty pre bezrámové riešenie ( Quantum ) | B132: 120 | C132: Wyliczenia dla rozwiązania bezramowego (Quantum) | D132: Calculations for frameless solution (Quantum) | E132: Расчеты для системы Quantum без рамы | F132: Berechnungen für die rahmenlose Lösung (Quantum) | H132: Розрахунок для безрамної системи Quantum | J132: Kalkulacija za sisteme brez okvira (Quantum) | K132: Výpočty pre bezrámové riešenie ( Quantum )
A133: Výpočty pre rámové riešenie ( Quantum R ) | B133: 121 | C133: Wyliczenia dla rozwiązania ramowego (Quantum R) | D133: Calculations for frame solution (Quantum R) | E133: Расчеты для системы Quantum R с рамой | F133: Berechnungen für die Rahmenlösung (Quantum R) | H133: Розрахунок для рамової системи Quantum | J133: Kalkulacija za sisteme z okvirjem (Quantum R) | K133: Výpočty pre rámové riešenie ( Quantum R )
A134: Rozmery výplne z DTD 10mm | B134: 122 | C134: Wymiary wypełnienia z płyty 10mm | D134: Dimensions of board filling 10mm | E134: Размеры наполнения из плиты 10мм | F134: Abmessungen der Füllung aus Platte 10 mm | H134: Розміри наповнення з плити 10 мм | J134: Dimenzije plošče 10mm | K134: Rozmery výplne z DTD 10mm
A135: Rozmery výplne zo skla 4mm | B135: 123 | C135: Wymiary wypełnienia ze szkła 4mm | D135: Dimensions of glass filling 4mm | E135: Размеры наполнения из стекла 4 мм | F135: Abmessungen der Füllung aus Glas 4 mm | H135: Розміри наповнення зі скла 4 мм | J135: Dimenzije stekla 4mm | K135: Rozmery výplne zo skla 4mm
A136: Rozmery hliníkových profilov | B136: 124 | C136: Wymiary profili aluminiowych | D136: Dimensions of alumimum profiles | E136: Размеры алюминиевых профилей | F136: Abmessungen von Alu-Profilen | H136: Розміри алюмінієвих профілів | J136: Dimenzije aluminijskih profilov | K136: Rozmery hliníkových profilov
A137: Šírka prekrytia X: | B137: 125 | C137: Szerokość zakładki X: | D137: Overlap X width: | E137: Ширина закладки Х: | F137: Breite der Überlappung X: | H137: Ширина закладки X: | J137: Širina prekrivanja X: | K137: Šírka prekrytia X:
A138: Rozmery krídla dverí: | B138: 126 | C138: Wymiary skrzydła drzwi: | D138: Door dimensions: | E138: Размеры полотна двери: | F138: Abmessungen des Türflügels: | H138: Розмір дверного полотна: | J138: Dimenzije vratnega krila: | K138: Rozmery krídla dverí:
A139: Výška z DTD | B139: 127 | C139: Wys. el. z płyty | D139: Height of board element | E139: Высота элем. из плиты | F139: Höhe des Elements aus Platte | H139: Висота елем. з плити | J139: Višina el. Iveralnih elementov | K139: Výška z DTD
A140: Výška zo skla | B140: 128 | C140: Wys. el. ze szkła | D140: Height of glass element | E140: Высота элем. из стекла | F140: Höhe des Elements aus Glas | H140: Висота елем. зі скла | J140: Višina el. Steklenih elementov | K140: Výška zo skla
A141: Minimum 300mm | B141: 129 | C141: Minimum 300mm | D141: Minimum 300mm | E141: Минимум 300 мм | F141: Mindestens 300 mm | H141: Мінімум 300 мм | J141: Minimum 300mm | K141: Minimum 300mm
A142: V systéme Quantum R maximálna výška dverí je 2,7M | B142: 130 | C142: W systemach Quantum R maksymalna wysokoś drzwi wynosi 2,7m | D142: In Quantum R the maximum door height = 2,7m | E142: Для систем Quantum R максимальная высота двери - 2,7м | F142: In Systemen Quantum R beträgt die maximale Türhöhe 2,7 m | H142: Для систем Quantum R максимальна висота дверей - 2,7 м | J142: V sistemima Quantum R maksimalna višina vrata je 2,7m | K142: V systéme Quantum R maximálna výška dverí je 2,7M
A143: =HLOOKUP($B$1,$C$13:$K$478,$B143,FALSE) -> Max. dĺžka "H" profilu A-HR10FL je 3M | B143: 131 | C143: Maksymalna długość łącznika A-HR10FL wynosi 3m | D143: Maximum lenght of connector A-HR10FL = 3m | E143: Максимальная длина соединителя A-HR10FL - 3м | F143: Die maximale Länge des Verbinders A-HR10FL beträgt 3 m | H143: Максимальна довжина зєднувача A-HR10FL - 3 м | J143: Maksimalna dolžina spojnega elementa A-HR10FL je 3m | K143: Max. dĺžka "H" profilu A-HR10FL je 3M
A144: Max. dĺžka "H" profilov A-HRS10 a HR10 je 6M | B144: 132 | C144: Maksymalna długość łączników A-HRS10 i A-HR10 wynosi 6m | D144: Maximum lenght of connectors A-HRS10 and A-HR10 = 6m | E144: Максимальная длина соединителей HRS10 и A-HR10 - 6м | F144: Die maximale Länge der Verbinder A-HRS10 und A-HR10 beträgt 6 m | H144: Максимальна довжина з'єднувачів HRS10 і A-HR10 - 6 м | J144: Maksimalna dolžina spojnega elemenata A-HRS10 i A-HR10 je 6m | K144: Max. dĺžka "H" profilov A-HRS10 a HR10 je 6M
A145: Váha krídla ( kg ) | B145: 133 | C145: Waga skrzydła [kg] | E145: Вес полотна (кг) | F145: Gewicht des Flügels [kg] | H145: Вага полотна (кг) | J145: teža krila [kg] | K145: Váha krídla ( kg )
A146: Prekročena max. váha krídla 50kg | B146: 134 | C146: Przekroczono dopuszczalną wagę skrzydła 50kg | D146: Exceeded the maximum weight of door 50kg | E146: Превышен допустимый вес полотна 50кг | F146: Das zulässige Gewicht des Flügels von 50 kg wurde überschritten | H146: Перевищена допустима вага полотна 50 кг | J146: Teža krila je večja od maksimalne 50kg | K146: Prekročena max. váha krídla 50kg
A147: Max. 3M | B147: 135 | C147: Max 3m | D147: Max 3m | E147: Мах 3м | F147: Max 3 m | H147: MAX 3 м | J147: Max 3m | K147: Max. 3M
A148: Hrúbka horného panelu: | B148: 136 | C148: Grubość wieńca górnego: | D148: Top plinth thickness: | E148: Толщина верхнего торца: | F148: Stärke der oberen Schrankkante: | H148: Товщина верхнього торця: | J148: Debelina zgornjega venca | K148: Hrúbka horného panelu:
A149: Hĺbka Gw: | B149: 137 | C149: Głębokość Gw: | D149: Depth Gw: | E149: Глубина Gw: | F149: Tiefe Gw: | H149: Глибина Gw.: | J149: Globina Gw: | K149: Hĺbka Gw:
A150: Hrúbka dolného | B150: 138 | C150: Grubość dolnego | D150: Thickness of bottom | E150: Толщина нижнего | F150: Stärke der unteren | H150: Товщина нижнього: | J150: Debelina spodnjega | K150: Hrúbka dolného
A151: Hrúbka horného | B151: 139 | C151: Grubość górnego | D151: Thickness of top | E151: Толщина верхнего | F151: Stärke der oberen | H151: Товщина верхнього: | J151: Debelina zgornjega | K151: Hrúbka horného
A152: Váha: | B152: 140 | C152: Waga: | D152: Weight: | E152: Вес: | F152: Gewicht: | H152: Вага: | J152: Teža: | K152: Váha:
A153: Zvýšiť hrúbku horného panela | B153: 141 | C153: Zwiększ grubość wieńca górnego | D153: increase top plinth thickness | E153: Увеличить толщ. верхнего торца: | F153: Die obere Schrankkante soll stärker sein | H153: Збільшити товщину верх. торця | J153: Povečak debelino zgornjega venca | K153: Zvýšiť hrúbku horného panela
A154: Ostatné rozmery: | B154: 142 | C154: Pozostałe wymiary: | D154: Other Dimensions: | E154: Остальные размера: | F154: Sonstige Abmessungen: | H154: Решта розмірів: | J154: Ostale dimenzije: | K154: Ostatné rozmery:
A155: V systéme Mito/Mito plus "H" profily - NIE | B155: 143 | C155: W systemie Mito/Mito PLUS nie stosuje się łączników | D155: In system Mito/Mito PLUS do not apply connectors | E155: В системе Mito/Mito PLUS соединители не используются | F155: Im System Mito/Mito PLUS werden keine Verbinder angewendet | H155: В системі Mito/Mito PLUS з'єднувачі не використовуються | J155: V sistemu Mito/Mito PLUS se ne koristijo spojni elementi | K155: V systéme Mito/Mito plus "H" profily - NIE
A156: BEZRÁMOVÉ | B156: 144 | C156: ---BEZRAMOWE--- | D156: ---FRAMELESS--- | E156: --- без рамы --- | F156: --- Rahmenlose --- | H156: --- безрамної --- | J156: --- Brez okvira --- | K156: BEZRÁMOVÉ
A157: RÁMOVÉ | B157: 145 | C157: ---RAMOWE--- | D157: ---FRAME--- | E157: --- Pамa --- | F157: --- Alu-Rahmen --- | H157: --- Pамa --- | J157: --- Alu-Okvir --- | K157: RÁMOVÉ
A158: Novinky | B158: 146 | C158: ----- NOWOŚCI ----- | K158: Novinky
A159: 0 | B159: 147
A160: 0 | B160: 148
A161: 0 | B161: 149
A162: 0 | B162: 150
A163: 0 | B163: 151
A164: 0 | B164: 152
A165: 0 | B165: 153
A166: 0 | B166: 154
A167: 0 | B167: 155
A168: 0 | B168: 156
A169: 0 | B169: 157
A170: 0 | B170: 158
A171: 0 | B171: 159
A172: 0 | B172: 160
A173: 0 | B173: 161
A174: 0 | B174: 162
A175: 0 | B175: 163
A176: 0 | B176: 164
A177: 0 | B177: 165
A178: 0 | B178: 166
A179: 0 | B179: 167
A180: 0 | B180: 168
A181: 0 | B181: 169
A182: 0 | B182: 170
A183: 0 | B183: 171
A184: 0 | B184: 172
A185: 0 | B185: 173
A186: 0 | B186: 174
A187: 0 | B187: 175
A188: 0 | B188: 176
A189: 0 | B189: 177
A190: 0 | B190: 178
A191: 0 | B191: 179
A192: 0 | B192: 180
A193: 0 | B193: 181
A194: 0 | B194: 182
A195: 0 | B195: 183
A196: 0 | B196: 184
A197: 0 | B197: 185
A198: 0 | B198: 186
A199: 0 | B199: 187
A200: 0 | B200: 188
A201: 0 | B201: 189
... 277 more rows
